Workbook

Sheet Using the Model
B7: INSTRUCTIONS
B8: Step 1 | C8: Please read over the information and diagrams below.
B9: Step 2 | C9: Navigate to the Interface tab (Tab number 2).
B10: Step 3 | C10: On the Interface tab, you will presented with various options to select & complete (See examples below).
B11: Step 4 | C11: Each block the requires your information/inputs must be completed to ensure the end results are accuarate.
B12: Step 5 | C12: Every effort has been made to provide you with accuarte, industry specific data. The Built-in Assumptions and Production Assumptions tabs provide data that the user can ammend if necessary.
B13: Step 6 | C13: The remaining tabs in the excel sheet will automatically update according to the data selected and inputs used. It is not recommended these sheets are changed.
B14: Step 7 | C14: Consult the Generic Economic Model User Manual for a detailed information & guidelines on the model.
B17: THE INTERFACE - PRODUCTION INFO
B34: THE INTERFACE - APPLICANT INFO (TELL US ABOUT YOU)
B54: THE INTERFACE - QUICK FACTS (OBTAIN YOUR RESULTS)
B74: THE INTERFACE - QUICK FACTS (SPECIES REQUIREMENTS)

Sheet Interface
B1: Economic Analysis Model For the R&D aquaculture projects
E7: <Please Select a Species> | F7: <Please Select a Location> | G7: <Please Select a System> | H7: <Please Select a Market> | I7: <Please select an appropriate selling price?> | J7: <Please Select Number of Fish>
E8: =IF(E7=Validation!H67,"WARNING! More research on egg broadcasters is required"," ") ->  | F8: =IF(F7=Validation!D15," ",IF(F7=Validation!D17," ",IF(F7=Validation!D23," ",IF(F7=Validation!D21,"Only recommended for areas along the coast","Production is not viable in non-coastal provinces due to the cost of trucking/synthesising seawater")))) -> Production is not viable in non-coastal provinces due to the cost of trucking/synthesising seawater | G8: =IF(G7=Validation!F5,"Pond production is not viable for these marine species due to the quantity of seawater required", IF(G7=Validation!F4,"As these are marine species, conventional aquaponics is not possible",IF(G7=Validation!F6,"Due to the cost of obtaining seawater, a flow-through system is not recommended",IF(G7=Validation!F7,"Although raceways have been used, limited data is avaliable on raceways in South Africa thus more research into this system is required. Raceways are currently not recommended for marine ornamentals"," ")))) ->  | I8: Prices typically can range from R 25 to R 28 per fish | J8: Number of Fish (Per annum)
J10: =J7/12 -> 
J11: Fish to sell per month
E12: Applicant's Profile
E14: OPERATIONAL | F14: FARM | G14: SURETY | H14: FINANCING | I14: PERCENTAGE DEBT
E15: <Select Operational Status> | F15: <Do you already have a Farm?> | G15: <Do you already have a investor?> | H15: <Type of financing> | I15: <Select % to be financed through debt>
F16: =IF($E$15=Validation!H10,"If facility already exists, please change this option to YES"," ") -> 
E17: LENGTH OF PRODUCTION | F17: TUNNEL SYSTEM | G17: SKILLS LEVEL
E18: 6 Months | F18: <Tunnel System?> | G18: <Please Select a Skills Level>
F19: =IF(AND($F$7="KwaZulu-Natal",$G$7=Validation!$F$3),"RAS may work in northern extremity of KZN (near the border) without greenhouse tunnels, but even then reduces the growth period by four months in winter when water temperatures are down to 17 degrees C"," ") -> 
E21: Quick Facts
E23: Financial Aspects
E25: INTERNAL RATE OF RETURN | F25: PROFITABILITY INDEX/COST-BENEFIT RATIO | G25: LOAN AMOUNT FOR WORKING CAPITAL | H25: LOAN AMOUNT FOR INFRASTRUCTURE & FACILITY | I25: INTEREST RATE | J25: PAYBACK PERIOD
E26: =IF(G7=" Recirculation Aquaculture System (RAS)",'IRR - RAS'!D19,0) -> 0 | F26: =IF(G7=" Recirculation Aquaculture System (RAS)",'NPV & PI - RAS'!D19,"Please select different system") -> Please select different system | G26: =IF(G7=" Recirculation Aquaculture System (RAS)",'Working Capital - RAS'!C34,"Please select a different system") -> Please select a different system | H26: =IF(G7=" Recirculation Aquaculture System (RAS)",'CAPEX '!J31,"Please select different system") -> Please select different system | I26: =IF(H15="DEBT",RISK!C25,IF(H15="DEBT/EQUITY",RISK!C25,0)) -> 0 | J26: <Please select a payback period>
E28: Operational Aspects
E29: OPERATING PERMITS | G29: YEAR UNTIL PROFITABLE | H29: YEAR UNTIL +CASHFLOW | I29: FARM SIZE REQUIRED (ha) | J29: # OF EMPLOYEES REQUIRED IN FIRST YEAR
E30: 15 year aquaculture right. Annual permit to undertake marine aquaculture. Annual permit to operate a marine hatchery. | G30: =IF(G7=" Recirculation Aquaculture System (RAS)",(INDEX('IS - RAS'!C4:N4,1,MATCH(0,'IS - RAS'!C45:N45,1)+1))) -> FALSE | H30: =IF(G7=" Recirculation Aquaculture System (RAS)",(INDEX('CF - RAS'!B2:M2,1,MATCH(0,'CF - RAS'!B33:M33,1)+1))) -> FALSE | I30: ='CAPEX '!E11 ->  | J30: =IF(G7=" Recirculation Aquaculture System (RAS)",HR!D21,"Please select a different system") -> Please select a different system
E32: Species Requirements
F34: OPTIMAL TEMPERATURE | G34: SURVIVAL RATE | H34: OPTIMAL pH | I34: SALINITY
F35: =IF(E7=Validation!H66,"23 - 26˚C","23 - 24˚C") -> 23 - 24˚C | G35: ='Production Assumptions'!$C$21 -> 0.1 | H35: Between 7 - 8.5 | I35: 28 -36 ppt
F39: OXYGEN | G39: NITRITE | H39: AMMONIA
F40: between 5 and 8 mg/L | G40: Less than 1mg/l NO₂-N | H40: less than 0.5 mg/L NH₃-N
G43: RECOMMENDED SPECIES
G44: =IF(E7=Validation!H66,"CLOWN FISH & DOTTY BACKS",IF(E7=Validation!H67,"YELLOW TANG & MARINE ANGELFISH"," ")) -> 
F47: *These figures and calculations are based on assumptions, please consult with a professional Aquaculture expert for more assistance and guidance before developing an aquaculture facility.

Sheet Built-In Assumptions
B1: Built-In Assumptions
D4: GENERAL ASSUMPTIONS
D5: CPI | E5: 0.051
D6: Business Tax | E6: 0.28
D7: Water (per kl) for 2016/17 | E7: 0
D8: Electricity (per kWh) | E8: 1.09
D9: Minimum price of Security | E9: 800
D10: Vet services (every 3 months) | E10: 1500
D11: Health and safety apparel | E11: 500
D12: Stationary | E12: 100
D13: Cost of breeding fish/per fish | E13: 50
D14: Average selling price | E14: =Interface!I7 -> <Please select an appropriate selling price?>
D15: Average feed price (per kg) | E15: 30
D16: Fuel costs | E16: 13.9
D17: Fuel consumption 2 to 5 tonne bakkie (R/Km) | E17: 20
D18: Land price (Dry land crop) | E18: 246346
D20: HUMAN RESOURCE ASSUMPTIONS
D21: Skills level | E21: Salary
D22: High skilled | E22: 0 | H22: * Assumed owner will take a share of the profits.
D23: Low skilled | E23: 5000

Sheet Validation (hidden)
B1: NUMBER OF FISH | D1: Species | F1: Systems | H1: Markets
B2: <Please Select Number of Fish> | D2: <Please Select a Species> | F2: <Please Select a System> | H2: <Please Select a Market>
B3: 15000 | D3: Marine Ornamental | F3: Recirculation Aquaculture System (RAS) | H3: Local Markets
B4: 16000 | F4: Aquaponics | H4: International Markets
B5: 17000 | F5: Pond culture
B6: 18000 | F6: Flow-Through
B7: 19000 | F7: Raceways | H7: Operational Status
B8: 20000 | F8: Cage | H8: <Select Operational Status>
B9: 21000 | H9: Start-Up
B10: 22000 | H10: Existing
B11: 23000
B12: 24000 | F12: Skills level
B13: 25000 | D13: Location | F13: <Please Select a Skills Level> | H13: Investor
B14: 26000 | D14: <Please Select a Location> | F14: No skills in Aquaculture | H14: <Do you already have a investor?>
B15: 27000 | D15: Eastern Cape | F15: Work experience (1-2 years) | H15: Yes
B16: 28000 | D16: Gauteng | F16: Work experience (3-5 years) | H16: No
B17: 29000 | D17: KwaZulu-Natal | F17: Work experience (over 5 years)
B18: 30000 | D18: Limpopo | F18: Formal education (certificate, diploma, degrees)
B19: 31000 | D19: Mpumalanga | H19: YEARS FOR LOAN
B20: 32000 | D20: North West | H20: <Please select a payback period>
B21: 33000 | D21: Northern Cape | F21: Existing Farm | H21: 1
B22: 34000 | D22: The Free State | F22: <Do you already have a Farm?> | H22: =H21+1 -> 2
B23: 35000 | D23: Western Cape | F23: Yes | H23: =H22+1 -> 3
B24: 36000 | F24: No | H24: 4
B25: 37000 | H25: 5
B26: 38000 | D26: LOAN | H26: 6
B27: 39000 | D27: <Type of financing> | F27: TUNNEL SYSTEM | H27: 7
B28: 40000 | D28: Debt | F28: <Tunnel System?> | H28: 8
B29: 41000 | D29: Equity | F29: Yes | H29: 9
B30: 42000 | D30: Debt/Equity | F30: No | H30: 10
B31: 43000 | F31: Existing Ras | H31: 11
B32: 44000 | D32: NATURAL POND | F32: <Do you have an existing RAS system?> | H32: 12
B33: 45000 | D33: <Will a natural pond be used?> | F33: Yes | H33: 13
B34: 46000 | D34: Yes | F34: No | H34: 14
B35: 47000 | D35: No | F35: PRICE INCREASE % | H35: 15
B36: 48000 | F36: <Please select an appropriate selling price?> | H36: 16
B37: 49000 | D37: Length of production/ target weight | F37: 20 | H37: 17
B38: 50000 | D38: <Please select the length of production(target weight)> | F38: 21 | H38: 18
B39: 51000 | D39: 1 Month | F39: 22 | H39: 19
B40: 52000 | D40: 2 Months | F40: 23 | H40: 20
B41: 53000 | D41: 3 Months | F41: 24 | H41: Percentage Debt
B42: 54000 | D42: 4 Months | F42: 25 | H42: <Select % to be financed through debt>
B43: 55000 | D43: 5 Months | F43: 26 | H43: 0.05
B44: 56000 | D44: 6 Months | F44: 27 | H44: 0.1
B45: 57000 | D45: 7 Months | F45: 28 | H45: 0.15
B46: 58000 | D46: 8 Months | F46: 29 | H46: 0.2
B47: 59000 | D47: 9 Months | F47: 30 | H47: 0.25
B48: 60000 | H48: 0.3
B49: 61000 | H49: 0.35
B50: 62000 | H50: 0.4
B51: 63000 | H51: 0.45
B52: 64000 | H52: 0.5
B53: 65000 | H53: 0.55
B54: 66000 | H54: 0.6
B55: 67000 | H55: 0.65
B56: 68000 | H56: 0.7
B57: 69000 | H57: 0.75
B58: 70000 | H58: 0.8
B59: 71000 | H59: 0.85
B60: 72000 | H60: 0.9
B61: 73000 | H61: 0.95
B62: 74000 | H62: 1
B63: 75000
H64: Marine Ornamentals
H65: <Please Select a Species>
H66: Substrate Spawners
H67: Egg Broadcasters
D117: 57
D118: 58
D119: 59
D120: 60

Sheet Production Assumptions
A1: PRODUCTION ASSUMPTIONS - MARINE ORNAMENTALS MODEL
B3: GENERAL ASSUMPTIONS | F3: Tonnages | G3: Permits | H3: Price
B4: CPI | C4: ='Built-In Assumptions'!E5 -> 0.051 | F4: 15 year aquaculture right. Annual permit to undertake marine aquaculture. Annual permit to operate a marine hatchery. | H4: 4500
B5: Days per month | C5: 30
B6: CPI in percentage | C6: =C4+1 -> 1.051 | F6: Feed & Stocking | H6: FEED AVERAGE
B7: Business Tax | C7: ='Built-In Assumptions'!E6 -> 0.28 | F7: Stocking number | G7: =G8 -> 300 | H7: ='Built-In Assumptions'!E15 -> 30
B8: Vet services (once a month) | C8: ='Built-In Assumptions'!E10 -> 1500 | F8: Stocking density (fish per m³) | G8: 300
B9: Water (per kl) for 2017 | C9: ='Built-In Assumptions'!E7 -> 0 | F9: FCR | G9: 3
B10: water price increases by: (pa) | C10: 1.051 | F10: Additional | H10: FEED AVERAGE
B11: Security | C11: ='Built-In Assumptions'!E9 -> 800 | F11: Packaging (per 100 fish) | G11: 40 | H11: =(Interface!J7/100)*'Production Assumptions'!G11 -> 
B12: Electricity (per kWh) | C12: ='Built-In Assumptions'!E8 -> 1.09 | D12: Eskom | F12: Freight (per 100 fish) | G12: 50 | H12: =(Interface!J7/100)*'Production Assumptions'!G12 -> 
B13: Facilities Electricty (per square meter) | C13: 20.14 | F13: Chemicals (per tunnel) | G13: 300 | H13: ='CAPEX '!E7*'Production Assumptions'!G13 -> 
B14: Recommended Sale price: R/kg | C14: 35 | F14: Consumables (per tunnel) | G14: 500 | H14: =G14*'CAPEX '!E7 -> 
B15: Cost of a fingerling/fish | C15: ='Built-In Assumptions'!E13 -> 50
B16: Cost of brood pair | C16: 150
B17: Number of brood pairs | C17: 50
B18: Land price (Dry land crop)/ha | C18: ='Built-In Assumptions'!E18 -> 246346
B19: Months of production (max) | C19: 6
B20: Final weight of fish (grams) | C20: 10
B21: Expected Survival (%) | C21: =IF(Interface!$E$7=Validation!$H$66,80%,10%) -> 0.1
B22: Expected Mortality rate | C22: =1-C21 -> 0.9
B23: Average Monthly Mortality Rate | C23: =C22/C19 -> 0.15
B27: Inputs | C27: Unit | D27: Price
B28: ='Technical info'!J4 -> Electricity Per tank (kWh/day) | D28: ='Technical info'!K4 -> 1.3
B29: ='Technical info'!J5 -> Electricity Per tank (kWh/month) | D29: ='Technical info'!K5 -> 39
B30: ='Technical info'!J6 -> Total Electricity Breeding Tanks/month | D30: ='Technical info'!K6 -> 1950
B31: ='Technical info'!J7 -> Cost breeding tanks/month | D31: =D30*C12 -> 2125.5
B34: HUMAN RESOURCES | E34: RAS | F34: Number of Fish
B35: Skills level | C35: Salary | D35: No. of employees | E35: Ratio (person per Fish) | F35: =Interface!$J$7 -> <Please Select Number of Fish>
B36: High skilled (Owner) | C36: ='Built-In Assumptions'!E22 -> 0 | E36: =1/1000000 -> 1e-06 | F36: =IF(Interface!J7<=25000,0,1) -> 1 | G36: =E36*$F$35 -> 
B37: Low skilled | C37: ='Built-In Assumptions'!E23 -> 5000 | E37: 1e-06 | F37: =IF(F35<=30000,1,3) -> 3 | G37: =E37*$F$35 -> 
C38: =SUM(C36:C37) -> 5000 | E38: Number of people: | F38: =ROUNDDOWN(F37+F36,0) -> 4
B41: Assumption: Working Capital -RAS
C42: Debtors Recovery Rate | D42: RateRecovery Period
C43: 12 | D43: 1
B45: Expected to receive 11 of the 12 months payments in present year and the last month in the following year
C47: YEAR 1 | D47: YEAR 2 | E47: YEAR 3 | F47: YEAR 4 | G47: YEAR 5 | H47: YEAR 6 | I47: YEAR 7 | J47: YEAR 8 | K47: YEAR 9 | L47: YEAR 10
B48: INCOME | C48: ='IS - RAS'!D7 ->  | D48: ='IS - RAS'!E7 ->  | E48: ='IS - RAS'!F7 ->  | F48: ='IS - RAS'!G7 ->  | G48: ='IS - RAS'!H7 ->  | H48: ='IS - RAS'!I7 ->  | I48: ='IS - RAS'!J7 ->  | J48: ='IS - RAS'!K7 ->  | K48: ='IS - RAS'!L7 ->  | L48: ='IS - RAS'!M7 -> 
B49: EFFECT ON CASH | C49: =(($C$43-$D$43)/$C$43*C48+($D$43/$C$43)*C51) ->  | D49: =(($C$43-$D$43)/$C$43*D48+($D$43/$C$43)*C48) -> 
B50: DEBTORS | C50: =C48-C49 ->  | D50: =C50+D48-D49 ->  | E50: =D50+E48-E49 ->  | F50: =E50+F48-F49 ->  | G50: =F50+G48-G49 ->  | H50: =G50+H48-H49 ->  | I50: =H50+I48-I49 -> 
B54: Assumptions on costs and increases
B55: Increase in Insurance | C55: 0.02
B56: Market size | C56: =IF(Interface!$E$18=Validation!$D$47,3,IF(Interface!$E$18=Validation!$D$46,2.5,IF(Interface!$E$18=Validation!$D$45,2,IF(Interface!$E$18=Validation!$D$44,1.75,IF(Interface!$E$18=Validation!$D$43,1.5,IF(Interface!$E$18=Validation!$D$42,0.75,IF(Interface!$E$18=Validation!$D$41,0.4,IF(Interface!$E$18=Validation!D40,0.02,'Feed and Biomass'!D4)))))))) -> 1.75
B57: Transport cost (local) | C57: =D72 -> 
B58: Telephone costs | C58: =IF(AND(Interface!$H$7=Validation!$H$4,Interface!$J$7<10000),500,IF(AND(Interface!$H$7=Validation!$H$4,Interface!$J$7<100000),1000,IF(AND(Interface!$H$7=Validation!$H$4,Interface!$J$7>100000),2000,IF(AND(Interface!$H$7=Validation!$H$3,Interface!$J$7<10000),250,IF(AND(Interface!$H$7=Validation!$H$3,Interface!$J$7<100000),500,1000))))) -> 1000
B59: increase in transport cost | C59: 0.02
B60: Health and safety apparel | C60: ='Built-In Assumptions'!E11 -> 500
B61: stationary | C61: ='Built-In Assumptions'!E12 -> 100
B62: Cleaning materials | C62: 800
B63: Vet Services | C63: =IF(Interface!$J$7<10000,'Built-In Assumptions'!E10,IF(Interface!J7<100000,2500,5000)) -> 5000
B64: Bank Charges | C64: =1.9/100 -> 0.019
B65: Marketing | C65: =IF(Interface!$J$7<5000,500,500*(1+(0.02*Interface!$J$7/1000))) -> 
B66: increase in marketing | C66: 0.01
B67: Percentage of variable costs kept as a reserve | C67: =IF(Interface!$J$7<20000,0.01,0.03) -> 0.03
B68: Transport cost (International) | C68: =D73 -> 
B69: liters per cubic meter | C69: 1000
B70: 2kg Weight conversion - Fuel | C70: 1.46e-07
B71: Weight conversion - Fuel | C71: =C70/2 -> 7.3e-08
B72: Local Radius (KM) from farm (max) | C72: =IF(OR(Interface!$F$7=Validation!$D$15,Interface!$F$7=Validation!$D$16,Interface!$F$7=Validation!$D$23,Interface!$F$7=Validation!$D$17),100,IF(OR(Interface!$F$7=Validation!$D$18,Interface!$F$7=Validation!$D$19,Interface!$F$7=Validation!$D$20,Interface!$F$7=Validation!$D$22),120,200))*((Interface!$J$7/1000)/2) ->  | D72: =(C75*C72)+(C74*C71) -> 
B73: International Radius (KM) from farm (max) | C73: =IF(OR(Interface!$F$7=Validation!$D$15,Interface!$F$7=Validation!$D$16,Interface!$F$7=Validation!$D$23,Interface!$F$7=Validation!$D$17),240,IF(OR(Interface!$F$7=Validation!$D$18,Interface!$F$7=Validation!$D$19,Interface!$F$7=Validation!$D$20,Interface!$F$7=Validation!$D$22),350,500))*((Interface!$J$7/1000)/2) ->  | D73: =(C75*C73)+(C74*C71) -> 
B74: # of fish | C74: =Interface!$J$7 -> <Please Select Number of Fish>
B75: 2 to 5 tonne bakkie (R/Km) | C75: ='Built-In Assumptions'!E17 -> 20

Sheet Technical info
B2: MARINE ORNAMENTALS
B3: Production Per Tunnel | J3: Electricity Usage
E4: Volume | J4: Electricity Per tank (kWh/day) | K4: 1.3
B5: Number of Ponds | C5: =72 -> 72 | E5: 1200 | J5: Electricity Per tank (kWh/month) | K5: =K4*30 -> 39
B6: Breeding Tanks | C6: 50 | J6: Total Electricity Breeding Tanks/month | K6: =C6*K5 -> 1950
B7: Grow out Ponds | C7: 72 | J7: Cost breeding tanks/month | K7: =K6*'Built-In Assumptions'!E8 -> 2125.5
B8: Volume water/tank | C8: =C9*C10*C11 -> 1.2
B9: ~Length (m) | C9: 1.2
B10: ~width (m) | C10: 1
B11: ~Hight (m) | C11: 1 | J11: Required Number of Systems
B12: Price per tank | C12: 3000 | J12: Total Number fish/tunnel | K12: =C5*C15 -> 21600
B13: Production Assumptions
B14: Density (fish/litre) | C14: 1 | J14: Total no fish required/pa | K14: =Interface!J7 -> <Please Select Number of Fish> | L14: *After mortality Rate
B15: Stocking density/pond | C15: ='Production Assumptions'!G8 -> 300 | J15: Fish to sell per month | K15: =K14/12 -> 
B16: Grow Out period (months) | C16: 6 | J16: Total no fish required/pa | K16: =(K14*'Production Assumptions'!C22)+K14 ->  | L16: * Before mortality rate
B17: Harvest weight of fish (g) | C17: ='Production Assumptions'!C20 -> 10 | J17: Total number ponds needed | K17: =ROUNDDOWN(K16/'Technical info'!C15,0) ->  | L17: * based on required number fish/pa
B18: Breeding Info | C18: 100 | F18: Per fish | G18: Total Price | J18: Total number tunnels needed | K18: =ROUND(K17/C5,0) ->  | L18: * based on required number fish/pa
B19: Males | C19: 0.5 | E19: =C18*C19 -> 50 | F19: 50 | G19: =E19*F19 -> 2500 | J19: Water Volume | K19: =E5/C5 -> 16.66666667
B20: Females | C20: 0.5 | E20: =C20*C18 -> 50 | F20: 50 | G20: =E20*F20 -> 2500
B21: Number Breeding Tanks ( 1 per pair) | C21: =C18/2 -> 50
B25: BREEDING ASSUMPTIONS | F25: MALE TO FEMALE RATIO
B26: Substrate Spawners - Clownfish/Dottybacks | F26: Egg Scatters -Yellow Tangs | G26: =SUM(G27:G28) -> 3
B27: Breeding stock - per fish | D27: 50 | F27: Egg Scatter Males | G27: 2
B28: Number of fish to buy | D28: 100 | F28: Egg Scatter Females | G28: 1
B29: Estimated number of breeding pairs | D29: 30 | F29: Substrate Spawners | G29: =SUM(G30:G31) -> 2
B30: Initial broodstock cost | D30: =D27*D28 -> 5000 | F30: Substrate Spawners males | G30: 1
B31: Ratio of fish/pairs | D31: 0.6 | F31: Substrate Spawners Females | G31: 1
B32: Number of eggs produced per pair | D32: 500
B33: Survival Rate of eggs | D33: 0.7
B34: Mortality rate of eggs/fry | D34: 0.3
B35: Total Number of eggs produced | D35: 175000
B36: Total number of eggs/fry for sale (after mortality) | D36: =D35-(D35*D34) -> 122500
B37: Ratio brood pairs/fry (each produce/eggs) | D37: =D36/D29 -> 4083.333333
B38: Number of fish to produce/annum | D38: =Interface!$J$7 -> <Please Select Number of Fish>
B39: Number of fish to sell/month | D39: =D38/12 -> 
B40: Number of fish to buy | D40: =ROUNDUP((D41*G29)*10/6,0) -> 
B41: Number of brood pairs required (M 1) | D41: =ROUNDUP(D39/D37,0) -> 
B43: Egg Scatters -Yellow Tangs
B44: Breeding stock - per fish | D44: 200
B45: Number of fish to buy | D45: 100
B46: Estimated number of breeding pairs | D46: 20
B47: Ratio fish/pairs | D47: 0.6
B48: Number of eggs produced per pair | D48: 250000
B49: Mortality Rate | D49: 0.95
B50: Number of eggs/pair (after mortality) | D50: =D48-(D48*D49) -> 12500
B51: Number of fish (after monthly mortality) | D51: =D50-(D50*D49) -> 625
B52: Number of fish to produce/annum | D52: =Interface!J30 -> Please select a different system
B53: Number of fish to sell/month | D53: =D52/12 -> 
B54: Number of breeding fish required in M 1 | D54: =ROUNDUP((D55*G26)*10/6,0) -> 
B55: Number of brood pairs required | D55: =ROUNDUP(D52/D50,0) -> 

Sheet Feed and Biomass
A1: FEED REQUIREMENTS - MARINE ORNAMENTALS MODEL
E3: Pond Size | G3: ='Technical info'!E5 -> 1200
C4: BIOMASS CALCULATIONS | E4: Number fish/pond | G4: ='Technical info'!C15 -> 300
C5: Fish per pond | D5: ='Technical info'!C15 -> 300 | E5: Number of ponds | G5: ='Technical info'!K17 -> 
C6: Final Mass fish (g) | D6: 10
C7: Biomass per pond (kg) | D7: =(G4*D6)/1000 -> 3
C8: Biomass for all ponds | D8: =D7*G5 -> 
C9: Biomass (kg) per m3 | D9: =(D8/G3)*1000 -> 
C11: FEED CALCULATIONS
C12: Growout period (months) | D12: ='Production Assumptions'!C19 -> 6
C13: FCR | D13: ='Production Assumptions'!G9 -> 3
C14: Price of Feed/kg | D14: ='Production Assumptions'!H7 -> 30
C15: Final Biomass/pond | D15: =D7 -> 3
C16: Total feed/pond/growout | D16: =D15*D13 -> 9
C17: Total feed for grow out (kg) | D17: =G5*D16 -> 
C18: Monthly Feed Avg | D18: =D17/D12 -> 
C19: Avg feed price/month | D19: =D14*D18 -> 

Sheet Bio-Model (hidden)
A1: BIO-MODEL - MARINE ORNAMENTALS MODEL
A3: Biofilter
A4: Hungary model
B5: Portion of system
A6: Solids settlement | B6: =100/3 -> 33.33333333
A8: Biofilter - RAS
A9: TAN removal per day (0.4-0.6g/m2/day)
A10: For removal of TAN from 1 kg of feed , 70-80m2 of biofilter needed (about 0.5m3 biofilter vlume)
D11: =Interface!$J$7 -> <Please Select Number of Fish>
A12: recirc vol
A13: Biofileter surface area per 1 kg dailyl feed | D13: 75 | J13: 1 ton | K13: 3 ton | L13: 5 ton | M13: 8 ton | N13: 10 ton | O13: 100 ton
A14: Daily feed amount | D14: ='Feed and Biomass'!D18/30 ->  | H14: Volume (m3) | J14: 1 | K14: 1 | L14: 1 | M14: 5.4 | N14: 5.4 | O14: 5.4
A15: Biofilter surface area needed m | D15: =D14*D13 ->  | H15: Diameter (m) | J15: 1.3 | K15: 1.3 | L15: 1.3 | M15: 2.5 | N15: 2.5 | O15: 2.5
A16: Biofilter media vol needed at (800 m2/m3) | D16: =D15/800 ->  | H16: Depth (m) | J16: 0.8 | K16: 0.8 | L16: 0.8 | M16: 1.1 | N16: 1.1 | O16: 1.1
A17: Biofilter vol | D17: =D14*1.1 ->  | H17: Price per tank | J17: 1100 | K17: 1100 | L17: 1100 | M17: 3400 | N17: 3400 | O17: 3400
A18: Biofilter tank size | D18: =IF(Interface!J7<=3000,K14,IF(Interface!$J$7<=5000,L14,IF(Interface!$J$7<=10000,N14,O14))) -> 5.4
A19: Number of biofilter tanks | D19: =ROUNDUP(D17/D18,0) -> 

Sheet CAPEX
A1: CAPITAL EXPENDITURE - FRESHWATER ORNAMENTALS MODEL
B3: RAS - CAPEX TO ESTABLISH ONE TUNNEL & NECESSARY INFRASTRUCTURE
B4: Item | C4: Units | D4: Capacity (tanks per month) | E4: Number of units | F4: RATIO | G4: Price per Unit (R) | H4: Number of Fish | I4: TOTAL | J4: TOTAL: WITH Increases in numbers | L4: Pumps
B5: 1. Infrastructure | J5: =SUM(J6:J9) ->  | L5: no pumps (2 pumps per tunnel) | M5: 2 | N5: =E7*M5 -> 
B6: Hatchery Room | C6: =IF(Interface!J7<=25000,6*8,IF(Interface!J7<=35000,8*8,9*8)) -> 72 | E6: 1 | F6: 1 | G6: 1200 | H6: =Interface!$J$7 -> <Please Select Number of Fish> | I6: =C6*G6 -> 86400 | J6: =IF(Interface!E15="EXISTING",0,I6) -> 86400 | L6: Pump Cost | N6: 1200
B7: Tunnels (number) (m) | C7: =50*3 -> 150 | E7: ='Technical info'!K18 ->  | F7: 1 | G7: 80000 | H7: =Interface!$J$7 -> <Please Select Number of Fish> | I7: =G7*E7 ->  | J7: =IF(Interface!F18=Validation!F30,0,I7) -> 
B8: Office/Storage/Feed store | C8: =IF(Interface!J7<=25000,6*8,IF(Interface!J7<=35000,8*8,9*8)) -> 72 | E8: 1 | F8: 1 | G8: 2500 | H8: =Interface!$J$7 -> <Please Select Number of Fish> | I8: =G8*C8*F8 -> 180000 | J8: =IF(Interface!$E$15="EXISTING",0,I8) -> 180000
B9: Packing Room (Complete with tanks,piping etc) | C9: =5*5 -> 25 | E9: 1 | F9: =IF(Interface!J7<=25000,1,1.01) -> 1.01 | G9: 25000 | H9: =Interface!$J$7 -> <Please Select Number of Fish> | I9: =E9*G9*F9 -> 25250 | J9: =IF(Interface!$E$15="EXISTING",0,I9) -> 25250
B10: 2. Land | J10: =J11 -> 
B11: Purchase Land (ha) | C11: 1 | E11: =IF(Interface!$J$7<=20000,1.5,1.5+(Interface!$J$7/1000)*0.04) ->  | G11: ='Production Assumptions'!$C$18 -> 246346 | H11: =Interface!$J$7 -> <Please Select Number of Fish> | I11: =G11*E11*C11 ->  | J11: =IF(AND(Interface!F15="YES",Interface!E15="EXISTING"),0,IF(AND(Interface!F15="YES",Interface!E15=Validation!$H$9),0,'CAPEX '!I11)) -> 
B12: 3. Equipment | J12: =SUM(J13:J23) -> 
B13: Grow-out containment number (m3) | C13: 1.5 | E13: ='Technical info'!K17 ->  | G13: ='Technical info'!C12 -> 3000 | H13: =Interface!$J$7 -> <Please Select Number of Fish> | I13: =G13*E13 ->  | J13: =IF(Interface!$E$15="EXISTING",0,I13) -> 
B14: Hatchery: Breeding Tanks (1 brood pair/tank) | E14: ='Technical info'!C21 -> 50 | G14: 250 | H14: =Interface!$J$7 -> <Please Select Number of Fish> | I14: =G14*E14 -> 12500 | J14: =IF(Interface!$E$15="EXISTING",0,I14) -> 12500
B15: Hatchery Tank Stands | E15: =ROUNDUP(E14/3,0) -> 17 | G15: 1200 | H15: =Interface!$J$7 -> <Please Select Number of Fish> | I15: =G15*E15 -> 20400 | J15: =IF(Interface!$E$15="EXISTING",0,I15) -> 20400
B16: Hatchery piping & Fittings | E16: 1 | F16: 1 | G16: 10000 | H16: =Interface!$J$7 -> <Please Select Number of Fish> | I16: =G16*E16 -> 10000 | J16: =IF(Interface!$E$15="EXISTING",0,I16) -> 10000
B17: Hatchery Heating/cooling | E17: 1 | F17: 1 | G17: 15000 | H17: =Interface!$J$7 -> <Please Select Number of Fish> | I17: 15000 | J17: =IF(Interface!$E$15="EXISTING",0,I17) -> 15000
B18: Water quality testing equipment | C18: 1 | E18: 1 | G18: 16500 | H18: =Interface!$J$7 -> <Please Select Number of Fish> | I18: =E18*G18 -> 16500 | J18: =IF(Interface!$E$15="EXISTING",0,I18) -> 16500
B19: Water Pumps | E19: =N5 ->  | G19: =N6 -> 1200 | H19: =Interface!$J$7 -> <Please Select Number of Fish> | I19: =G19*E19 ->  | J19: =IF(Interface!$E$15="EXISTING",0,I19) -> 
B20: Water Supply Piping & fittings | E20: =E7 ->  | F20: 1 | G20: 6000 | H20: =Interface!$J$7 -> <Please Select Number of Fish> | I20: =G20*E20*F20 ->  | J20: =IF(Interface!$E$15="EXISTING",0,I20) -> 
B21: Water Drainage Piping & fittings | E21: =E7 ->  | F21: 1 | G21: 8000 | H21: =Interface!$J$7 -> <Please Select Number of Fish> | I21: =G21*E21*F21 ->  | J21: =IF(Interface!$E$15="EXISTING",0,I21) -> 
B22: Biofilter Tank | C22: ='Bio-Model'!D18 -> 5.4 | E22: ='Bio-Model'!D19 ->  | F22: 1 | G22: =IF(Interface!J7<=3000,'Bio-Model'!K17,IF(Interface!$J$7<=5000,'Bio-Model'!L17,IF(Interface!$J$7<=10000,'Bio-Model'!M17,'Bio-Model'!O17))) -> 3400 | H22: =Interface!$J$7 -> <Please Select Number of Fish> | I22: =C22*G22 -> 18360 | J22: =IF(Interface!$E$15="EXISTING",0,I22) -> 18360
B23: Biofilter Media | C23: ='Bio-Model'!D16 ->  | G23: 7000 | H23: =Interface!$J$7 -> <Please Select Number of Fish> | I23: =G23*C23 ->  | J23: =IF(Interface!$E$15="EXISTING",0,I23) -> 
B24: 4. More Equipment | J24: =SUM(J25:J30) -> 
B25: Buckets/drums | C25: 1 | E25: ='Production Assumptions'!F38 -> 4 | F25: 1 | G25: 273.2 | H25: =Interface!$J$7 -> <Please Select Number of Fish> | I25: =G25*E25 -> 1092.8 | J25: =IF(Interface!$E$15="EXISTING",0,I25) -> 1092.8
B26: Feeding Stations | E26: =E13 ->  | G26: 15 | H26: =Interface!$J$7 -> <Please Select Number of Fish> | I26: =G26*E26 ->  | J26: =IF(Interface!$E$15="EXISTING",0,I26) -> 
B27: Spawning Traps | E27: =E14 -> 50 | G27: 150 | H27: =Interface!$J$7 -> <Please Select Number of Fish> | I27: =G27*E27 -> 7500 | J27: =IF(Interface!$E$15="EXISTING",0,I27) -> 7500
B28: Office equipment | C28: 1 | E28: 1 | F28: 1 | G28: 6000 | H28: =Interface!$J$7 -> <Please Select Number of Fish> | I28: =G28*C28 -> 6000 | J28: =IF(Interface!$E$15="EXISTING",0,I28) -> 6000
B29: Short/long handle Hand net | C29: 1 | E29: =E25 -> 4 | F29: 1 | G29: 216 | H29: =Interface!$J$7 -> <Please Select Number of Fish> | I29: =G29*E29 -> 864 | J29: =IF(Interface!$E$15="EXISTING",0,I29) -> 864
B30: Vehicle | C30: =IF(Interface!$J$7<=20000,0,1) -> 1 | E30: 0 | G30: 200000 | H30: =Interface!$J$7 -> <Please Select Number of Fish> | I30: =G30*C30 -> 200000 | J30: =IF(Interface!$E$15="EXISTING",0,I30) -> 200000
B31: TOTAL EXCLUDING Working Capital | J31: =J24+J12+J10+J5 -> 

Sheet HR (hidden)
A1: HUMAN RESOURCES - FRESHWATER ORNAMENTALS MODEL
B3: RAS
B4: LABOUR:
E5: YEAR 1 | Q5: 1 | R5: YEAR 2 | AE5: 2 | AG5: 3 | AI5: 4 | AK5: 5 | AM5: 6 | AO5: 7 | AQ5: 8 | AS5: 9
B6: Employees: | C6: Year 1 | D6: Annual Cost: Year 1 | E6: Month 1 | F6: Month 2 | G6: Month 3 | H6: Month 4 | I6: Month 5 | J6: Month 6 | K6: Month 7 | L6: Month 8 | M6: Month 9 | N6: Month 10 | O6: Month 11 | P6: Month 12 | Q6: Year 2: | R6: Month 1 | S6: Month 2 | T6: Month 3 | U6: Month 4 | V6: Month 5 | W6: Month 6 | X6: Month 7 | Y6: Month 8 | Z6: Month 9 | AA6: Month 10 | AB6: Month 11 | AC6: Month 12 | AD6: Annual Cost: Year 2 | AE6: Year 3: | AF6: Annual Cost: Year 3 | AG6: Year 4: | AH6: Annual Cost: Year 4 | AI6: Year 5 | AJ6: Annual Cost: Year 5 | AK6: Year 6 | AL6: Annual Cost: Year 6 | AM6: Year 7 | AN6: Annual Cost: Year 7 | AO6: Year 8 | AP6: Annual Cost: Year 8 | AQ6: Year 9 | AR6: Annual Cost: Year 9 | AS6: Year 10 | AT6: Annual Cost: Year 10
B7: Owner | C7: =P13 -> 1 | D7: =SUM(E7:P7) -> 0 | E7: ='Production Assumptions'!$C$36*D13 -> 0 | F7: ='Production Assumptions'!$C$36*E13 -> 0 | G7: ='Production Assumptions'!$C$36*F13 -> 0 | H7: ='Production Assumptions'!$C$36*G13 -> 0 | I7: ='Production Assumptions'!$C$36*H13 -> 0 | J7: ='Production Assumptions'!$C$36*I13 -> 0 | K7: ='Production Assumptions'!$C$36*J13 -> 0 | L7: ='Production Assumptions'!$C$36*K13 -> 0 | M7: ='Production Assumptions'!$C$36*L13 -> 0 | N7: ='Production Assumptions'!$C$36*M13 -> 0 | O7: ='Production Assumptions'!$C$36*N13 -> 0 | P7: ='Production Assumptions'!$C$36*O13 -> 0 | Q7: =Q13 -> 1 | R7: ='Production Assumptions'!$C$36*(1+'Production Assumptions'!$C$4)*R13 -> 0 | S7: ='Production Assumptions'!$C$36*(1+'Production Assumptions'!$C$4)*S13 -> 0 | T7: ='Production Assumptions'!$C$36*(1+'Production Assumptions'!$C$4)*T13 -> 0 | U7: ='Production Assumptions'!$C$36*(1+'Production Assumptions'!$C$4)*U13 -> 0 | V7: ='Production Assumptions'!$C$36*(1+'Production Assumptions'!$C$4)*V13 -> 0 | W7: ='Production Assumptions'!$C$36*(1+'Production Assumptions'!$C$4)*W13 -> 0 | X7: ='Production Assumptions'!$C$36*(1+'Production Assumptions'!$C$4)*X13 -> 0 | Y7: ='Production Assumptions'!$C$36*(1+'Production Assumptions'!$C$4)*Y13 -> 0 | Z7: ='Production Assumptions'!$C$36*(1+'Production Assumptions'!$C$4)*Z13 -> 0 | AA7: ='Production Assumptions'!$C$36*(1+'Production Assumptions'!$C$4)*AA13 -> 0 | AB7: ='Production Assumptions'!$C$36*(1+'Production Assumptions'!$C$4)*AB13 -> 0 | AC7: ='Production Assumptions'!$C$36*(1+'Production Assumptions'!$C$4)*AC13 -> 0 | AD7: =SUM(R7:AC7) -> 0 | AE7: =AD13 -> 1 | AF7: =$AD7*(1+'Production Assumptions'!$C$4) -> 0 | AG7: =AE13 -> 1 | AH7: =$AD7*(1+'Production Assumptions'!$C$4)^2 -> 0 | AI7: =AF13 -> 1 | AJ7: =$AD7*(1+'Production Assumptions'!$C$4)^3 -> 0 | AK7: =AG13 -> 1 | AL7: =$AD7*(1+'Production Assumptions'!$C$4)^4 -> 0 | AM7: =AH13 -> 1 | AN7: =$AD7*(1+'Production Assumptions'!$C$4)^5 -> 0 | AO7: =AI13 -> 1 | AP7: =$AD7*(1+'Production Assumptions'!$C$4)^6 -> 0 | AQ7: =AJ13 -> 1 | AR7: =$AD7*(1+'Production Assumptions'!$C$4)^7 -> 0 | AS7: =AK13 -> 1 | AT7: =$AD7*(1+'Production Assumptions'!$C$4)^8 -> 0
B8: Low Skilled | C8: =P14 -> 3 | D8: =SUM(E8:P8) -> 180000 | E8: ='Production Assumptions'!$C$37*D14 -> 15000 | F8: ='Production Assumptions'!$C$37*E14 -> 15000 | G8: ='Production Assumptions'!$C$37*F14 -> 15000 | H8: ='Production Assumptions'!$C$37*G14 -> 15000 | I8: ='Production Assumptions'!$C$37*H14 -> 15000 | J8: ='Production Assumptions'!$C$37*I14 -> 15000 | K8: ='Production Assumptions'!$C$37*J14 -> 15000 | L8: ='Production Assumptions'!$C$37*K14 -> 15000 | M8: ='Production Assumptions'!$C$37*L14 -> 15000 | N8: ='Production Assumptions'!$C$37*M14 -> 15000 | O8: ='Production Assumptions'!$C$37*N14 -> 15000 | P8: ='Production Assumptions'!$C$37*O14 -> 15000 | Q8: =Q14 -> 3 | R8: ='Production Assumptions'!$C$37*(1+'Production Assumptions'!$C$4)*R14 -> 15765 | S8: ='Production Assumptions'!$C$37*(1+'Production Assumptions'!$C$4)*S14 -> 15765 | T8: ='Production Assumptions'!$C$37*(1+'Production Assumptions'!$C$4)*T14 -> 15765 | U8: ='Production Assumptions'!$C$37*(1+'Production Assumptions'!$C$4)*U14 -> 15765 | V8: ='Production Assumptions'!$C$37*(1+'Production Assumptions'!$C$4)*V14 -> 15765 | W8: ='Production Assumptions'!$C$37*(1+'Production Assumptions'!$C$4)*W14 -> 15765 | X8: ='Production Assumptions'!$C$37*(1+'Production Assumptions'!$C$4)*X14 -> 15765 | Y8: ='Production Assumptions'!$C$37*(1+'Production Assumptions'!$C$4)*Y14 -> 15765 | Z8: ='Production Assumptions'!$C$37*(1+'Production Assumptions'!$C$4)*Z14 -> 15765 | AA8: ='Production Assumptions'!$C$37*(1+'Production Assumptions'!$C$4)*AA14 -> 15765 | AB8: ='Production Assumptions'!$C$37*(1+'Production Assumptions'!$C$4)*AB14 -> 15765 | AC8: ='Production Assumptions'!$C$37*(1+'Production Assumptions'!$C$4)*AC14 -> 15765 | AD8: =SUM(R8:AC8) -> 189180 | AE8: =AD14 -> 3 | AF8: =$AD8*(1+'Production Assumptions'!$C$4) -> 198828.18 | AG8: =AE14 -> 3 | AH8: =$AD8*(1+'Production Assumptions'!$C$4)^2 -> 208968.4172 | AI8: =AF14 -> 3 | AJ8: =$AD8*(1+'Production Assumptions'!$C$4)^3 -> 219625.8065 | AK8: =AG14 -> 3 | AL8: =$AD8*(1+'Production Assumptions'!$C$4)^4 -> 230826.7226 | AM8: =AH14 -> 3 | AN8: =$AD8*(1+'Production Assumptions'!$C$4)^5 -> 242598.8854 | AO8: =AI14 -> 3 | AP8: =$AD8*(1+'Production Assumptions'!$C$4)^6 -> 254971.4286 | AQ8: =AJ14 -> 3 | AR8: =$AD8*(1+'Production Assumptions'!$C$4)^7 -> 267974.9715 | AS8: =AK14 -> 3 | AT8: =$AD8*(1+'Production Assumptions'!$C$4)^8 -> 281641.695
C9: =P15 -> 4 | D9: =SUM(D7:D8) -> 180000 | E9: 15000 | F9: 15000 | G9: 15000 | H9: 15000 | I9: 15000 | J9: 15000 | K9: 15000 | L9: 15000 | M9: 15000 | N9: 15000 | O9: 15000 | P9: 15000 | Q9: 4 | R9: 15765 | S9: 15765 | T9: 15765 | U9: 15765 | V9: 15765 | W9: 15765 | X9: 15765 | Y9: 15765 | Z9: 15765 | AA9: 15765 | AB9: 15765 | AC9: 15765 | AD9: 189180 | AE9: 4 | AF9: 198828.18 | AG9: 4 | AH9: 208968.4172 | AI9: 4 | AJ9: 219625.8065 | AK9: =AI9 -> 4 | AL9: =SUM(AL7:AL8) -> 230826.7226 | AM9: 4 | AN9: 242598.8854 | AO9: 4 | AP9: 254971.4286 | AQ9: 4 | AR9: 267974.9715 | AS9: 4 | AT9: 281641.695
B11: HR | D11: =E5 -> YEAR 1 | P11: Year 1 | Q11: Year 2: | R11: =R5 -> YEAR 2 | AD11: Year 3: | AE11: Year 4: | AF11: Year 5 | AG11: Year 6 | AH11: Year 7 | AI11: Year 8 | AJ11: Year 9 | AK11: Year 10
B12: No. of Employees: | D12: =E6 -> Month 1 | E12: =F6 -> Month 2 | F12: Month 3 | G12: Month 4 | H12: Month 5 | I12: Month 6 | J12: Month 7 | K12: Month 8 | L12: Month 9 | M12: Month 10 | N12: Month 11 | O12: Month 12 | R12: =R6 -> Month 1 | S12: =S6 -> Month 2 | T12: Month 3 | U12: Month 4 | V12: Month 5 | W12: Month 6 | X12: Month 7 | Y12: Month 8 | Z12: Month 9 | AA12: Month 10 | AB12: Month 11 | AC12: Month 12
B13: Managers: | C13: =B7 -> Owner | D13: ='Production Assumptions'!$F$36 -> 1 | E13: ='Production Assumptions'!$F$36 -> 1 | F13: ='Production Assumptions'!$F$36 -> 1 | G13: ='Production Assumptions'!$F$36 -> 1 | H13: ='Production Assumptions'!$F$36 -> 1 | I13: ='Production Assumptions'!$F$36 -> 1 | J13: ='Production Assumptions'!$F$36 -> 1 | K13: ='Production Assumptions'!$F$36 -> 1 | L13: ='Production Assumptions'!$F$36 -> 1 | M13: ='Production Assumptions'!$F$36 -> 1 | N13: ='Production Assumptions'!$F$36 -> 1 | O13: ='Production Assumptions'!$F$36 -> 1 | P13: =O13 -> 1 | Q13: =AC13 -> 1 | R13: ='Production Assumptions'!$F$36 -> 1 | S13: ='Production Assumptions'!$F$36 -> 1 | T13: ='Production Assumptions'!$F$36 -> 1 | U13: ='Production Assumptions'!$F$36 -> 1 | V13: ='Production Assumptions'!$F$36 -> 1 | W13: ='Production Assumptions'!$F$36 -> 1 | X13: ='Production Assumptions'!$F$36 -> 1 | Y13: ='Production Assumptions'!$F$36 -> 1 | Z13: ='Production Assumptions'!$F$36 -> 1 | AA13: ='Production Assumptions'!$F$36 -> 1 | AB13: ='Production Assumptions'!$F$36 -> 1 | AC13: ='Production Assumptions'!$F$36 -> 1 | AD13: =(AC$13) -> 1 | AE13: =(AD$13) -> 1 | AF13: 1 | AG13: 1 | AH13: 1 | AI13: 1 | AJ13: 1 | AK13: 1
B14: Staff: | C14: =B8 -> Low Skilled | D14: ='Production Assumptions'!$F$37 -> 3 | E14: ='Production Assumptions'!$F$37 -> 3 | F14: ='Production Assumptions'!$F$37 -> 3 | G14: ='Production Assumptions'!$F$37 -> 3 | H14: ='Production Assumptions'!$F$37 -> 3 | I14: ='Production Assumptions'!$F$37 -> 3 | J14: ='Production Assumptions'!$F$37 -> 3 | K14: ='Production Assumptions'!$F$37 -> 3 | L14: ='Production Assumptions'!$F$37 -> 3 | M14: ='Production Assumptions'!$F$37 -> 3 | N14: ='Production Assumptions'!$F$37 -> 3 | O14: ='Production Assumptions'!$F$37 -> 3 | P14: =O14 -> 3 | Q14: =AC14 -> 3 | R14: ='Production Assumptions'!$F$37 -> 3 | S14: ='Production Assumptions'!$F$37 -> 3 | T14: ='Production Assumptions'!$F$37 -> 3 | U14: ='Production Assumptions'!$F$37 -> 3 | V14: ='Production Assumptions'!$F$37 -> 3 | W14: ='Production Assumptions'!$F$37 -> 3 | X14: ='Production Assumptions'!$F$37 -> 3 | Y14: ='Production Assumptions'!$F$37 -> 3 | Z14: ='Production Assumptions'!$F$37 -> 3 | AA14: ='Production Assumptions'!$F$37 -> 3 | AB14: ='Production Assumptions'!$F$37 -> 3 | AC14: ='Production Assumptions'!$F$37 -> 3 | AD14: =AC14 -> 3 | AE14: =AD14 -> 3 | AF14: 3 | AG14: 3 | AH14: 3 | AI14: 3 | AJ14: 3 | AK14: 3
B15: Total: | D15: =SUM(D13:D14) -> 4 | E15: 4 | F15: 4 | G15: 4 | H15: 4 | I15: 4 | J15: 4 | K15: 4 | L15: 4 | M15: 4 | N15: 4 | O15: 4 | P15: 4 | Q15: 4 | R15: 4 | S15: 4 | T15: 4 | U15: 4 | V15: 4 | W15: 4 | X15: 4 | Y15: 4 | Z15: 4 | AA15: 4 | AB15: 4 | AC15: 4 | AD15: 4 | AE15: 4 | AF15: 4 | AG15: 4 | AH15: 4 | AI15: 4 | AJ15: 4 | AK15: 4
B18: Summary
D20: Year 1
C21: RAS | D21: =C9 -> 4

Sheet OPEX - RAS
A1: OPERATIONAL EXPENDITURE - RAS
P2: 1 | AB2: 1 | AC2: 2 | AD2: 3 | AE2: 4 | AF2: 5 | AG2: 6 | AH2: 7 | AI2: 8 | AJ2: 9
C3: YEAR 1 | D3: =C3 -> YEAR 1 | P3: YEAR 2 | Q3: Year 2 | AC3: YEAR 3 | AD3: YEAR 4 | AE3: YEAR 5 | AF3: YEAR 6 | AG3: YEAR 7 | AH3: YEAR 8 | AI3: YEAR 9 | AJ3: YEAR 10
D4: Month 1 | E4: Month 2 | F4: Month 3 | G4: Month 4 | H4: Month 5 | I4: Month 6 | J4: Month 7 | K4: Month 8 | L4: Month 9 | M4: Month 10 | N4: Month 11 | O4: Month 12 | Q4: Month 1 | R4: Month 2 | S4: Month 3 | T4: Month 4 | U4: Month 5 | V4: Month 6 | W4: Month 7 | X4: Month 8 | Y4: Month 9 | Z4: Month 10 | AA4: Month 11 | AB4: Month 12
B5: Income from Sales:
B6: Marine Ornamentals (Selling stock) | C6: =SUM(D6:O6) ->  | D6: =IF(Interface!$E$18=Validation!D39,(Interface!$I$7*'Feed and Biomass'!#REF!),0) -> 0 | E6: =IF(Interface!$E$18=Validation!D39,D6,IF(Interface!$E$18=Validation!D40,Interface!$I$7*'Feed and Biomass'!#REF!,0)) -> 0 | F6: =IF(Interface!$E$18=Validation!D39,D6,IF(Interface!$E$18=Validation!D40,E6,IF(Interface!$E$18=Validation!D41,Interface!$I$7*'Feed and Biomass'!#REF!,0))) -> 0 | G6: =IF(Interface!$E$18=Validation!D39,D6,IF(Interface!$E$18=Validation!D40,E6,IF(Interface!$E$18=Validation!D41,F6,IF(Interface!$E$18=Validation!D42,Interface!$I$7*'Feed and Biomass'!#REF!,0)))) -> 0 | H6: =IF(Interface!$E$18=Validation!D39,D6,IF(Interface!$E$18=Validation!D40,E6,IF(Interface!$E$18=Validation!D41,F6,IF(Interface!$E$18=Validation!D42,G6,IF(Interface!$E$18=Validation!D43,Interface!$I$7*'Feed and Biomass'!#REF!,0))))) -> 0 | I6: =Interface!J10*Interface!I7 ->  | J6: =I6 ->  | K6: =J6 ->  | P6: =SUM(Q6:AB6) ->  | Q6: =O6*'Production Assumptions'!$C$6 ->  | R6: =Q6 ->  | S6: =R6 ->  | T6: =S6 ->  | U6: =T6 ->  | AC6: =($AB$6*'Production Assumptions'!$C$6)*12 ->  | AD6: =($AB$6*12)*('Production Assumptions'!$C$6)^AC2 ->  | AE6: =($AB$6*12)*('Production Assumptions'!$C$6)^AD2 ->  | AF6: =($AB$6*12)*('Production Assumptions'!$C$6)^AE2 ->  | AG6: =($AB$6*12)*('Production Assumptions'!$C$6)^AF2 ->  | AH6: =($AB$6*12)*('Production Assumptions'!$C$6)^AG2 ->  | AI6: =($AB$6*12)*('Production Assumptions'!$C$6)^AH2 ->  | AJ6: =($AB$6*12)*('Production Assumptions'!$C$6)^AI2 -> 
B7: TOTAL INCOME: | C7: =SUM(D7:O7) ->  | D7: =SUM(D6:D6) -> 0 | E7: 0 | F7: 0 | G7: 0 | H7: 0
B9: VARIABLE COSTS:
B10: Breeding Fish | C10: =SUM(D10:O10) -> 20000 | D10: =IF(Interface!$E$7=Validation!$H$66,'Technical info'!D28*'Technical info'!D27,'Technical info'!D44*'Technical info'!D45) -> 20000 | E10: 0 | F10: 0 | G10: 0 | H10: 0 | I10: 0 | J10: 0 | K10: 0 | L10: 0 | M10: 0 | N10: 0 | O10: 0 | P10: =SUM(Q10:AB10) -> 0 | Q10: 0 | R10: =$O$10*('Production Assumptions'!$C$6) -> 0 | S10: =$O$10*('Production Assumptions'!$C$6) -> 0 | T10: =$O$10*('Production Assumptions'!$C$6) -> 0 | U10: =$O$10*('Production Assumptions'!$C$6) -> 0 | V10: =$O$10*('Production Assumptions'!$C$6) -> 0 | W10: =$O$10*('Production Assumptions'!$C$6) -> 0 | X10: =$O$10*('Production Assumptions'!$C$6) -> 0 | Y10: =$O$10*('Production Assumptions'!$C$6) -> 0 | Z10: =$O$10*('Production Assumptions'!$C$6) -> 0 | AA10: =$O$10*('Production Assumptions'!$C$6) -> 0 | AB10: =$O$10*('Production Assumptions'!$C$6) -> 0 | AD10: =((C10*'Production Assumptions'!C6)*'Production Assumptions'!C6*'Production Assumptions'!C6) -> 23218.71302 | AE10: =$P$10*('Production Assumptions'!$C$6)^AD2 -> 0 | AF10: =$P$10*('Production Assumptions'!$C$6)^AE2 -> 0 | AG10: =((AD10*'Production Assumptions'!C6)*'Production Assumptions'!C6*'Production Assumptions'!C6) -> 26955.43172 | AI10: =$P$10*('Production Assumptions'!$C$6)^AH2 -> 0 | AJ10: =((AG10*'Production Assumptions'!C6)*'Production Assumptions'!C6*'Production Assumptions'!C6) -> 31293.52167
B11: Feed | C11: =SUM(D11:O11) ->  | D11: ='Feed and Biomass'!D19 ->  | E11: =D11 ->  | F11: =E11 ->  | P11: =SUM(Q11:AB11) ->  | Q11: =O11*'Production Assumptions'!$C$6 ->  | R11: =Q11 ->  | S11: =R11 ->  | AC11: =(AB11*12)*('Production Assumptions'!C6) ->  | AD11: =($AB$11*12)*('Production Assumptions'!$C$6)^AC2 ->  | AE11: =($AB$11*12)*('Production Assumptions'!$C$6)^AD2 ->  | AF11: =($AB$11*12)*('Production Assumptions'!$C$6)^AE2 ->  | AG11: =($AB$11*12)*('Production Assumptions'!$C$6)^AF2 ->  | AH11: =($AB$11*12)*('Production Assumptions'!$C$6)^AG2 ->  | AI11: =($AB$11*12)*('Production Assumptions'!$C$6)^AH2 ->  | AJ11: =($AB$11*12)*('Production Assumptions'!$C$6)^AI2 -> 
B12: Freight (per 100 fish) | C12: =SUM(D12:O12) ->  | D12: =IF(AND(Interface!$H$7="International Markets",Interface!$E$18=Validation!$D$39),'Production Assumptions'!$C$68,IF(AND(Interface!$H$7=Validation!$H$3,Interface!$E$18=Validation!$D$39),'Production Assumptions'!$C$57,300)) -> 300 | E12: =IF(AND(Interface!$H$7="International Markets",Interface!$E$18=Validation!$D$40),'Production Assumptions'!$C$68,IF(AND(Interface!$H$7=Validation!$H$3,Interface!$E$18=Validation!$D$40),'Production Assumptions'!$C$57,D12)) -> 300 | F12: =IF(AND(Interface!$H$7="International Markets",Interface!$E$18=Validation!$D$41),'Production Assumptions'!$C$68,IF(AND(Interface!$H$7=Validation!$H$3,Interface!$E$18=Validation!$D$41),'Production Assumptions'!$C$57,E12)) -> 300 | G12: =IF(AND(Interface!$H$7="International Markets",Interface!$E$18=Validation!$D$42),'Production Assumptions'!$C$68,IF(AND(Interface!$H$7=Validation!$H$3,Interface!$E$18=Validation!$D$42),'Production Assumptions'!$C$57,F12)) -> 300 | H12: =IF(AND(Interface!$H$7="International Markets",Interface!$E$18=Validation!$D$43),'Production Assumptions'!$C$68,IF(AND(Interface!$H$7=Validation!$H$3,Interface!$E$18=Validation!$D$43),'Production Assumptions'!$C$57,G12)) -> 300 | I12: ='Production Assumptions'!H12 ->  | J12: =IF(AND(Interface!$H$7="International Markets",Interface!$E$18=Validation!$D$45),'Production Assumptions'!$C$68,IF(AND(Interface!$H$7=Validation!$H$3,Interface!$E$18=Validation!$D$45),'Production Assumptions'!$C$57,I12)) ->  | K12: =IF(AND(Interface!$H$7="International Markets",Interface!$E$18=Validation!$D$46),'Production Assumptions'!$C$68,IF(AND(Interface!$H$7=Validation!$H$3,Interface!$E$18=Validation!$D$46),'Production Assumptions'!$C$57,J12)) ->  | L12: =IF(AND(Interface!$H$7="International Markets",Interface!$E$18=Validation!D47),'Production Assumptions'!$C$68,IF(AND(Interface!$H$7=Validation!$H$3,Interface!$E$18=Validation!D47),'Production Assumptions'!$C$57,K12)) ->  | M12: =IF(AND(Interface!$H$7="International Markets",Interface!$E$18=Validation!$D$48),'Production Assumptions'!$C$68,IF(AND(Interface!$H$7=Validation!$H$3,Interface!$E$18=Validation!$D$48),'Production Assumptions'!$C$57,L12)) ->  | N12: =IF(AND(Interface!$H$7="International Markets",Interface!$E$18=Validation!$D$49),'Production Assumptions'!$C$68,IF(AND(Interface!$H$7=Validation!$H$3,Interface!$E$18=Validation!$D$49),'Production Assumptions'!$C$57,M12)) ->  | O12: =IF(AND(Interface!$H$7="International Markets",Interface!$E$18=Validation!$D$50),'Production Assumptions'!$C$68,IF(AND(Interface!$H$7=Validation!$H$3,Interface!$E$18=Validation!$D$50),'Production Assumptions'!$C$57,N12)) ->  | P12: =SUM(Q12:AB12) ->  | Q12: =IF(AND(Interface!$H$7="International Markets",Interface!$E$18=Validation!$D$51),'Production Assumptions'!$C$68,IF(AND(Interface!$H$7=Validation!$H$3,Interface!$E$18=Validation!$D$51),'Production Assumptions'!$C$57,O12))*'Production Assumptions'!$C$6^'OPEX - RAS'!$P$2 ->  | R12: =Q12 ->  | S12: =R12 ->  | AC12: =($AB$12*12)*('Production Assumptions'!$C$6) ->  | AD12: =($AB$12*12)*('Production Assumptions'!$C$6)^AC2 ->  | AE12: =($AB$12*12)*('Production Assumptions'!$C$6)^AD2 ->  | AF12: =($AB$12*12)*('Production Assumptions'!$C$6)^AE2 ->  | AG12: =($AB$12*12)*('Production Assumptions'!$C$6)^AF2 ->  | AH12: =($AB$12*12)*('Production Assumptions'!$C$6)^AG2 ->  | AI12: =($AB$12*12)*('Production Assumptions'!$C$6)^AH2 ->  | AJ12: =($AB$12*12)*('Production Assumptions'!$C$6)^AI2 -> 
B13: Packaging | D13: 0 | E13: 0 | F13: 0 | G13: 0 | H13: 0 | I13: ='Production Assumptions'!H11 ->  | J13: =I13 ->  | K13: =J13 ->  | P13: =SUM(Q13:AB13) ->  | Q13: =$O$13*('Production Assumptions'!$C$6) ->  | R13: =$O$13*('Production Assumptions'!$C$6) ->  | S13: =$O$13*('Production Assumptions'!$C$6) ->  | T13: =$O$13*('Production Assumptions'!$C$6) ->  | U13: =$O$13*('Production Assumptions'!$C$6) ->  | V13: =$O$13*('Production Assumptions'!$C$6) ->  | W13: =$O$13*('Production Assumptions'!$C$6) ->  | X13: =$O$13*('Production Assumptions'!$C$6) ->  | Y13: =$O$13*('Production Assumptions'!$C$6) ->  | Z13: =$O$13*('Production Assumptions'!$C$6) ->  | AA13: =$O$13*('Production Assumptions'!$C$6) ->  | AB13: =$O$13*('Production Assumptions'!$C$6) ->  | AC13: =($AB$13*('Production Assumptions'!$C$6)^AB2)*12 ->  | AD13: =($AB$13*('Production Assumptions'!$C$6)^AC2)*12 ->  | AE13: =($AB$13*('Production Assumptions'!$C$6)^AD2)*12 ->  | AF13: =($AB$13*('Production Assumptions'!$C$6)^AE2)*12 ->  | AG13: =($AB$13*('Production Assumptions'!$C$6)^AF2)*12 ->  | AH13: =($AB$13*('Production Assumptions'!$C$6)^AG2)*12 ->  | AI13: =($AB$13*('Production Assumptions'!$C$6)^AH2)*12 ->  | AJ13: =($AB$13*('Production Assumptions'!$C$6)^AI2)*12 -> 
B14: Chemicals | D14: ='Production Assumptions'!H13 ->  | E14: =D14 ->  | F14: =E14 ->  | P14: =SUM(Q14:AB14) ->  | Q14: =$O$14*('Production Assumptions'!$C$6) ->  | R14: =Q14 ->  | S14: =R14 ->  | AC14: =($AB$14*('Production Assumptions'!$C$6)^AB2)*12 ->  | AD14: =($AB$14*('Production Assumptions'!$C$6)^AC2)*12 ->  | AE14: =($AB$14*('Production Assumptions'!$C$6)^AD2)*12 ->  | AF14: =($AB$14*('Production Assumptions'!$C$6)^AE2)*12 ->  | AG14: =($AB$14*('Production Assumptions'!$C$6)^AF2)*12 ->  | AH14: =($AB$14*('Production Assumptions'!$C$6)^AG2)*12 ->  | AI14: =($AB$14*('Production Assumptions'!$C$6)^AH2)*12 ->  | AJ14: =($AB$14*('Production Assumptions'!$C$6)^AI2)*12 -> 
B15: Consumables | D15: ='Production Assumptions'!H14 ->  | E15: =D15 ->  | F15: =E15 ->  | P15: =SUM(Q15:AB15) ->  | Q15: =$O$15*('Production Assumptions'!$C$6) ->  | R15: =Q15 ->  | S15: =R15 ->  | AC15: =($AB$15*('Production Assumptions'!$C$6)^AB2)*12 ->  | AD15: =($AB$15*('Production Assumptions'!$C$6)^AC2)*12 ->  | AE15: =($AB$15*('Production Assumptions'!$C$6)^AD2)*12 ->  | AF15: =($AB$15*('Production Assumptions'!$C$6)^AE2)*12 ->  | AG15: =($AB$15*('Production Assumptions'!$C$6)^AF2)*12 ->  | AH15: =($AB$15*('Production Assumptions'!$C$6)^AG2)*12 ->  | AI15: =($AB$15*('Production Assumptions'!$C$6)^AH2)*12 ->  | AJ15: =($AB$15*('Production Assumptions'!$C$6)^AI2)*12 -> 
B16: TOTAL VARIABLE COST: | C16: =SUM(C10:C15) ->  | D16: =SUM(D10:D15) ->  | E16: =SUM(E10:E15) ->  | Q16: =SUM(Q10:Q15) ->  | R16: =SUM(R10:R15) -> 
B18: FIXED COSTS:
B19: Salaries - Staff | C19: =SUM(D19:O19) -> 180000 | D19: =HR!E9 -> 15000 | E19: =HR!F9 -> 15000 | F19: =HR!G9 -> 15000 | G19: =HR!H9 -> 15000 | H19: =HR!I9 -> 15000 | I19: =HR!J9 -> 15000 | J19: =HR!K9 -> 15000 | K19: =HR!L9 -> 15000 | L19: =HR!M9 -> 15000 | M19: =HR!N9 -> 15000 | N19: =HR!O9 -> 15000 | O19: =HR!P9 -> 15000 | P19: =SUM(Q19:AB19) -> 189180 | Q19: =HR!R9 -> 15765 | R19: =HR!S9 -> 15765 | S19: =HR!T9 -> 15765 | T19: =HR!U9 -> 15765 | U19: =HR!V9 -> 15765 | V19: =HR!W9 -> 15765 | W19: =HR!X9 -> 15765 | X19: =HR!Y9 -> 15765 | Y19: =HR!Z9 -> 15765 | Z19: =HR!AA9 -> 15765 | AA19: =HR!AB9 -> 15765 | AB19: =HR!AC9 -> 15765 | AC19: =($AB$19*('Production Assumptions'!$C$6)^AB2)*12 -> 198828.18 | AD19: =($AB$19*('Production Assumptions'!$C$6)^AC2)*12 -> 208968.4172 | AE19: =($AB$19*('Production Assumptions'!$C$6)^AD2)*12 -> 219625.8065 | AF19: =($AB$19*('Production Assumptions'!$C$6)^AE2)*12 -> 230826.7226 | AG19: =($AB$19*('Production Assumptions'!$C$6)^AF2)*12 -> 242598.8854 | AH19: =($AB$19*('Production Assumptions'!$C$6)^AG2)*12 -> 254971.4286 | AI19: =($AB$19*('Production Assumptions'!$C$6)^AH2)*12 -> 267974.9715 | AJ19: =($AB$19*('Production Assumptions'!$C$6)^AI2)*12 -> 281641.695
B20: Telephone Expenses | C20: =SUM(D20:O20) -> 12000 | D20: ='Production Assumptions'!$C$58 -> 1000 | E20: ='Production Assumptions'!$C$58 -> 1000 | F20: ='Production Assumptions'!$C$58 -> 1000 | G20: ='Production Assumptions'!$C$58 -> 1000 | H20: ='Production Assumptions'!$C$58 -> 1000 | I20: ='Production Assumptions'!$C$58 -> 1000 | J20: ='Production Assumptions'!$C$58 -> 1000 | K20: ='Production Assumptions'!$C$58 -> 1000 | L20: ='Production Assumptions'!$C$58 -> 1000 | M20: ='Production Assumptions'!$C$58 -> 1000 | N20: ='Production Assumptions'!$C$58 -> 1000 | O20: ='Production Assumptions'!$C$58 -> 1000 | P20: =SUM(Q20:AB20) -> 12612 | Q20: =$O$20*('Production Assumptions'!$C$6) -> 1051 | R20: =$O$20*('Production Assumptions'!$C$6) -> 1051 | S20: =$O$20*('Production Assumptions'!$C$6) -> 1051 | T20: =$O$20*('Production Assumptions'!$C$6) -> 1051 | U20: =$O$20*('Production Assumptions'!$C$6) -> 1051 | V20: =$O$20*('Production Assumptions'!$C$6) -> 1051 | W20: =$O$20*('Production Assumptions'!$C$6) -> 1051 | X20: =$O$20*('Production Assumptions'!$C$6) -> 1051 | Y20: =$O$20*('Production Assumptions'!$C$6) -> 1051 | Z20: =$O$20*('Production Assumptions'!$C$6) -> 1051 | AA20: =$O$20*('Production Assumptions'!$C$6) -> 1051 | AB20: =$O$20*('Production Assumptions'!$C$6) -> 1051 | AC20: =($AB$20*('Production Assumptions'!$C$6))*12 -> 13255.212 | AD20: =($AB$20*('Production Assumptions'!$C$6)^AC2)*12 -> 13931.22781 | AE20: =($AB$20*('Production Assumptions'!$C$6)^AD2)*12 -> 14641.72043 | AF20: =($AB$20*('Production Assumptions'!$C$6)^AE2)*12 -> 15388.44817 | AG20: =($AB$20*('Production Assumptions'!$C$6)^AF2)*12 -> 16173.25903 | AH20: =($AB$20*('Production Assumptions'!$C$6)^AG2)*12 -> 16998.09524 | AI20: =($AB$20*('Production Assumptions'!$C$6)^AH2)*12 -> 17864.9981 | AJ20: =($AB$20*('Production Assumptions'!$C$6)^AI2)*12 -> 18776.113
B21: Electricity | C21: 25506 | D21: ='Production Assumptions'!D31 -> 2125.5 | E21: =D21 -> 2125.5 | F21: =E21 -> 2125.5 | G21: 2125.5 | H21: 2125.5 | I21: 2125.5 | J21: 2125.5 | K21: 2125.5 | L21: 2125.5 | M21: 2125.5 | N21: 2125.5 | O21: 2125.5 | P21: 26806.806 | Q21: =$O$21*('Production Assumptions'!$C$6) -> 2233.9005 | R21: =$O$21*('Production Assumptions'!$C$6) -> 2233.9005 | S21: =$O$21*('Production Assumptions'!$C$6) -> 2233.9005 | T21: =$O$21*('Production Assumptions'!$C$6) -> 2233.9005 | U21: =$O$21*('Production Assumptions'!$C$6) -> 2233.9005 | V21: =$O$21*('Production Assumptions'!$C$6) -> 2233.9005 | W21: =$O$21*('Production Assumptions'!$C$6) -> 2233.9005 | X21: =$O$21*('Production Assumptions'!$C$6) -> 2233.9005 | Y21: =$O$21*('Production Assumptions'!$C$6) -> 2233.9005 | Z21: =$O$21*('Production Assumptions'!$C$6) -> 2233.9005 | AA21: =$O$21*('Production Assumptions'!$C$6) -> 2233.9005 | AB21: =$O$21*('Production Assumptions'!$C$6) -> 2233.9005 | AC21: =($AB$21*('Production Assumptions'!$C$6))*12 -> 28173.95311 | AD21: =($AB$21*('Production Assumptions'!$C$6)^AC2)*12 -> 29610.82471 | AE21: =($AB$21*('Production Assumptions'!$C$6)^AD2)*12 -> 31120.97677 | AF21: =($AB$21*('Production Assumptions'!$C$6)^AE2)*12 -> 32708.14659 | AG21: =($AB$21*('Production Assumptions'!$C$6)^AF2)*12 -> 34376.26207 | AH21: =($AB$21*('Production Assumptions'!$C$6)^AG2)*12 -> 36129.45143 | AI21: =($AB$21*('Production Assumptions'!$C$6)^AH2)*12 -> 37972.05345 | AJ21: =($AB$21*('Production Assumptions'!$C$6)^AI2)*12 -> 39908.62818
B22: Legal & licencing | C22: 4500 | D22: ='Production Assumptions'!H4 -> 4500 | E22: 0 | F22: 0 | G22: 0 | H22: 0 | I22: 0 | J22: 0 | K22: 0 | L22: 0 | M22: 0 | N22: 0 | O22: 0 | P22: 0 | Q22: 0 | R22: =E22*('Production Assumptions'!$C$6) -> 0 | S22: =F22*('Production Assumptions'!$C$6) -> 0 | T22: =G22*('Production Assumptions'!$C$6) -> 0 | U22: =H22*('Production Assumptions'!$C$6) -> 0 | V22: =I22*('Production Assumptions'!$C$6) -> 0 | W22: =J22*('Production Assumptions'!$C$6) -> 0 | X22: =K22*('Production Assumptions'!$C$6) -> 0 | Y22: =L22*('Production Assumptions'!$C$6) -> 0 | Z22: =M22*('Production Assumptions'!$C$6) -> 0 | AA22: =N22*('Production Assumptions'!$C$6) -> 0 | AB22: =O22*('Production Assumptions'!$C$6) -> 0 | AC22: =$Q$22*('Production Assumptions'!$C$6) -> 0 | AD22: =$Q$22*('Production Assumptions'!$C$6)^AC2 -> 0 | AE22: =$D$22*('Production Assumptions'!$C$6)^AE2 -> 5490.645161 | AF22: =$Q$22*('Production Assumptions'!$C$6)^AE2 -> 0 | AG22: =$Q$22*('Production Assumptions'!$C$6)^AF2 -> 0 | AH22: =$Q$22*('Production Assumptions'!$C$6)^AG2 -> 0 | AI22: =$Q$22*('Production Assumptions'!$C$6)^AH2 -> 0 | AJ22: =$Q$22*('Production Assumptions'!$C$6)^AI2 -> 0
B23: Health and safety apparel | C23: 2000 | D23: ='Production Assumptions'!$C$60*HR!$D$21 -> 2000 | E23: 0 | F23: 0 | G23: 0 | H23: 0 | I23: 0 | J23: 0 | K23: 0 | L23: 0 | M23: 0 | N23: 0 | O23: 0 | P23: 2102 | Q23: =D23*('Production Assumptions'!$C$6) -> 2102 | R23: =E23*('Production Assumptions'!$C$6) -> 0 | S23: =F23*('Production Assumptions'!$C$6) -> 0 | T23: =G23*('Production Assumptions'!$C$6) -> 0 | U23: =H23*('Production Assumptions'!$C$6) -> 0 | V23: =I23*('Production Assumptions'!$C$6) -> 0 | W23: =J23*('Production Assumptions'!$C$6) -> 0 | X23: =K23*('Production Assumptions'!$C$6) -> 0 | Y23: =L23*('Production Assumptions'!$C$6) -> 0 | Z23: =M23*('Production Assumptions'!$C$6) -> 0 | AA23: =N23*('Production Assumptions'!$C$6) -> 0 | AB23: =O23*('Production Assumptions'!$C$6) -> 0 | AC23: =$Q$23*('Production Assumptions'!$C$6) -> 2209.202 | AD23: =$Q$23*('Production Assumptions'!$C$6)^AC2 -> 2321.871302 | AE23: =$Q$23*('Production Assumptions'!$C$6)^AD2 -> 2440.286738 | AF23: =$Q$23*('Production Assumptions'!$C$6)^AE2 -> 2564.741362 | AG23: =$Q$23*('Production Assumptions'!$C$6)^AF2 -> 2695.543172 | AH23: =$Q$23*('Production Assumptions'!$C$6)^AG2 -> 2833.015873 | AI23: =$Q$23*('Production Assumptions'!$C$6)^AH2 -> 2977.499683 | AJ23: =$Q$23*('Production Assumptions'!$C$6)^AI2 -> 3129.352167
B24: stationary | C24: 1200 | D24: =IF(Interface!$J$7<9,0,'Production Assumptions'!$C$61) -> 100 | E24: =IF(Interface!$J$7<9,0,'Production Assumptions'!$C$61) -> 100 | F24: =IF(Interface!$J$7<9,0,'Production Assumptions'!$C$61) -> 100 | G24: =IF(Interface!$J$7<9,0,'Production Assumptions'!$C$61) -> 100 | H24: =IF(Interface!$J$7<9,0,'Production Assumptions'!$C$61) -> 100 | I24: =IF(Interface!$J$7<9,0,'Production Assumptions'!$C$61) -> 100 | J24: =IF(Interface!$J$7<9,0,'Production Assumptions'!$C$61) -> 100 | K24: =IF(Interface!$J$7<9,0,'Production Assumptions'!$C$61) -> 100 | L24: =IF(Interface!$J$7<9,0,'Production Assumptions'!$C$61) -> 100 | M24: =IF(Interface!$J$7<9,0,'Production Assumptions'!$C$61) -> 100 | N24: =IF(Interface!$J$7<9,0,'Production Assumptions'!$C$61) -> 100 | O24: =IF(Interface!$J$7<9,0,'Production Assumptions'!$C$61) -> 100 | P24: 1261.2 | Q24: =$O$24*('Production Assumptions'!$C$6) -> 105.1 | R24: =$O$24*('Production Assumptions'!$C$6) -> 105.1 | S24: =$O$24*('Production Assumptions'!$C$6) -> 105.1 | T24: =$O$24*('Production Assumptions'!$C$6) -> 105.1 | U24: =$O$24*('Production Assumptions'!$C$6) -> 105.1 | V24: =$O$24*('Production Assumptions'!$C$6) -> 105.1 | W24: =$O$24*('Production Assumptions'!$C$6) -> 105.1 | X24: =$O$24*('Production Assumptions'!$C$6) -> 105.1 | Y24: =$O$24*('Production Assumptions'!$C$6) -> 105.1 | Z24: =$O$24*('Production Assumptions'!$C$6) -> 105.1 | AA24: =$O$24*('Production Assumptions'!$C$6) -> 105.1 | AB24: =$O$24*('Production Assumptions'!$C$6) -> 105.1 | AC24: =($AB$24*('Production Assumptions'!$C$6))*12 -> 1325.5212 | AD24: =($AB$24*('Production Assumptions'!$C$6)^AC2)*12 -> 1393.122781 | AE24: =($AB$24*('Production Assumptions'!$C$6)^AD2)*12 -> 1464.172043 | AF24: =($AB$24*('Production Assumptions'!$C$6)^AE2)*12 -> 1538.844817 | AG24: =($AB$24*('Production Assumptions'!$C$6)^AF2)*12 -> 1617.325903 | AH24: =($AB$24*('Production Assumptions'!$C$6)^AG2)*12 -> 1699.809524 | AI24: =($AB$24*('Production Assumptions'!$C$6)^AH2)*12 -> 1786.49981 | AJ24: =($AB$24*('Production Assumptions'!$C$6)^AI2)*12 -> 1877.6113
B25: Cleaning materials | C25: 9600 | D25: ='Production Assumptions'!$C$62 -> 800 | E25: ='Production Assumptions'!$C$62 -> 800 | F25: ='Production Assumptions'!$C$62 -> 800 | G25: ='Production Assumptions'!$C$62 -> 800 | H25: ='Production Assumptions'!$C$62 -> 800 | I25: ='Production Assumptions'!$C$62 -> 800 | J25: ='Production Assumptions'!$C$62 -> 800 | K25: ='Production Assumptions'!$C$62 -> 800 | L25: ='Production Assumptions'!$C$62 -> 800 | M25: ='Production Assumptions'!$C$62 -> 800 | N25: ='Production Assumptions'!$C$62 -> 800 | O25: ='Production Assumptions'!$C$62 -> 800 | P25: 10089.6 | Q25: =$O$25*('Production Assumptions'!$C$6) -> 840.8 | R25: =$O$25*('Production Assumptions'!$C$6) -> 840.8 | S25: =$O$25*('Production Assumptions'!$C$6) -> 840.8 | T25: =$O$25*('Production Assumptions'!$C$6) -> 840.8 | U25: =$O$25*('Production Assumptions'!$C$6) -> 840.8 | V25: =$O$25*('Production Assumptions'!$C$6) -> 840.8 | W25: =$O$25*('Production Assumptions'!$C$6) -> 840.8 | X25: =$O$25*('Production Assumptions'!$C$6) -> 840.8 | Y25: =$O$25*('Production Assumptions'!$C$6) -> 840.8 | Z25: =$O$25*('Production Assumptions'!$C$6) -> 840.8 | AA25: =$O$25*('Production Assumptions'!$C$6) -> 840.8 | AB25: =$O$25*('Production Assumptions'!$C$6) -> 840.8 | AC25: =($AB$25*('Production Assumptions'!$C$6))*12 -> 10604.1696 | AD25: =($AB$25*('Production Assumptions'!$C$6)^AC2)*12 -> 11144.98225 | AE25: =($AB$25*('Production Assumptions'!$C$6)^AD2)*12 -> 11713.37634 | AF25: =($AB$25*('Production Assumptions'!$C$6)^AE2)*12 -> 12310.75854 | AG25: =($AB$25*('Production Assumptions'!$C$6)^AF2)*12 -> 12938.60722 | AH25: =($AB$25*('Production Assumptions'!$C$6)^AG2)*12 -> 13598.47619 | AI25: =($AB$25*('Production Assumptions'!$C$6)^AH2)*12 -> 14291.99848 | AJ25: =($AB$25*('Production Assumptions'!$C$6)^AI2)*12 -> 15020.8904
B26: Vet Services | C26: 20000 | D26: ='Production Assumptions'!$C$63 -> 5000 | E26: 0 | F26: 0 | G26: =D26 -> 5000 | H26: 0 | J26: =D26 -> 5000 | M26: =D26 -> 5000 | P26: 21020 | Q26: =D26*('Production Assumptions'!$C$6) -> 5255 | R26: =E26*('Production Assumptions'!$C$6) -> 0 | S26: =F26*('Production Assumptions'!$C$6) -> 0 | T26: =G26*('Production Assumptions'!$C$6) -> 5255 | U26: =H26*('Production Assumptions'!$C$6) -> 0 | V26: =I26*('Production Assumptions'!$C$6) -> 0 | W26: =J26*('Production Assumptions'!$C$6) -> 5255 | X26: =K26*('Production Assumptions'!$C$6) -> 0 | Y26: =L26*('Production Assumptions'!$C$6) -> 0 | Z26: =M26*('Production Assumptions'!$C$6) -> 5255 | AA26: =N26*('Production Assumptions'!$C$6) -> 0 | AB26: =O26*('Production Assumptions'!$C$6) -> 0 | AC26: =($P$26*('Production Assumptions'!$C$6)) -> 22092.02 | AD26: =($P$26*('Production Assumptions'!$C$6)^AC2) -> 23218.71302 | AE26: =($P$26*('Production Assumptions'!$C$6)^AD2) -> 24402.86738 | AF26: =($P$26*('Production Assumptions'!$C$6)^AE2) -> 25647.41362 | AG26: =($P$26*('Production Assumptions'!$C$6)^AF2) -> 26955.43172 | AH26: =($P$26*('Production Assumptions'!$C$6)^AG2) -> 28330.15873 | AI26: =($P$26*('Production Assumptions'!$C$6)^AH2) -> 29774.99683 | AJ26: =($P$26*('Production Assumptions'!$C$6)^AI2) -> 31293.52167
B27: Bank Charges | C27: =SUM(D27:O27) ->  | D27: =IF(D$6=0,60,D$6/100*(1+'Production Assumptions'!$C$64)+60) -> 60 | E27: =IF(E$6=0,60,E$6/100*(1+'Production Assumptions'!$C$64)+60) -> 60 | F27: =IF(F$6=0,60,F$6/100*(1+'Production Assumptions'!$C$64)+60) -> 60 | G27: =IF(G$6=0,60,G$6/100*(1+'Production Assumptions'!$C$64)+60) -> 60 | H27: =IF(H$6=0,60,H$6/100*(1+'Production Assumptions'!$C$64)+60) -> 60 | I27: =IF(I$6=0,60,I$6/100*(1+'Production Assumptions'!$C$64)+60) ->  | J27: =IF(J$6=0,60,J$6/100*(1+'Production Assumptions'!$C$64)+60) ->  | K27: =IF(K$6=0,60,K$6/100*(1+'Production Assumptions'!$C$64)+60) ->  | L27: =IF(L$6=0,60,L$6/100*(1+'Production Assumptions'!$C$64)+60) ->  | M27: =IF(M$6=0,60,M$6/100*(1+'Production Assumptions'!$C$64)+60) ->  | N27: =IF(N$6=0,60,N$6/100*(1+'Production Assumptions'!$C$64)+60) ->  | O27: =IF(O$6=0,60,O$6/100*(1+'Production Assumptions'!$C$64)+60) ->  | Q27: =IF(Q$6=0,60,Q$6/100*(1+'Production Assumptions'!$C$64)+60)*('Production Assumptions'!$C$6) ->  | R27: =$Q$27 ->  | S27: =$Q$27 ->  | AC27: =($AB27*('Production Assumptions'!$C$6))*12 ->  | AD27: =($AB27*('Production Assumptions'!$C$6)^AC2)*12 ->  | AE27: =($AB27*('Production Assumptions'!$C$6)^AD2)*12 ->  | AF27: =($AB$27*('Production Assumptions'!$C$6)^AE2)*12 ->  | AG27: =($AB$27*('Production Assumptions'!$C$6)^AF2)*12 ->  | AH27: =($AB$27*('Production Assumptions'!$C$6)^AG2)*12 ->  | AI27: =($AB$27*('Production Assumptions'!$C$6)^AH2)*12 ->  | AJ27: =($AB$27*('Production Assumptions'!$C$6)^AI2)*12 -> 
B28: Marketing | D28: ='Production Assumptions'!C65 ->  | E28: =D28 ->  | F28: =E28 ->  | Q28: =O28*'Production Assumptions'!$C$6 ->  | R28: =Q28 ->  | S28: =R28 ->  | AC28: =($AB28*('Production Assumptions'!$C$6))*12 ->  | AD28: =($AB28*('Production Assumptions'!$C$6)^AC2)*12 ->  | AE28: =($AB28*('Production Assumptions'!$C$6)^AD2)*12 ->  | AF28: =($AB28*('Production Assumptions'!$C$6)^AE2)*12 ->  | AG28: =($AB28*('Production Assumptions'!$C$6)^AF2)*12 ->  | AH28: =($AB28*('Production Assumptions'!$C$6)^AG2)*12 ->  | AI28: =($AB28*('Production Assumptions'!$C$6)^AH2)*12 ->  | AJ28: =($AB28*('Production Assumptions'!$C$6)^AI2)*12 -> 
B29: Reserve & Unforeseen Cost | D29: =D$16*'Production Assumptions'!$C$67 ->  | E29: =$D$29 ->  | F29: =$D$29 ->  | Q29: =$O$29*('Production Assumptions'!$C$6) ->  | R29: =$O$29*('Production Assumptions'!$C$6) ->  | S29: =$O$29*('Production Assumptions'!$C$6) ->  | T29: =$O$29*('Production Assumptions'!$C$6) ->  | U29: =$O$29*('Production Assumptions'!$C$6) ->  | V29: =$O$29*('Production Assumptions'!$C$6) ->  | W29: =$O$29*('Production Assumptions'!$C$6) ->  | X29: =$O$29*('Production Assumptions'!$C$6) ->  | Y29: =$O$29*('Production Assumptions'!$C$6) ->  | Z29: =$O$29*('Production Assumptions'!$C$6) ->  | AA29: =$O$29*('Production Assumptions'!$C$6) ->  | AB29: =$O$29*('Production Assumptions'!$C$6) ->  | AC29: =($AB$29*('Production Assumptions'!$C$6))*12 ->  | AD29: =($AB$29*('Production Assumptions'!$C$6)^AC2)*12 ->  | AE29: =($AB$29*('Production Assumptions'!$C$6)^AD2)*12 ->  | AF29: =($AB$29*('Production Assumptions'!$C$6)^AE2)*12 ->  | AG29: =($AB$29*('Production Assumptions'!$C$6)^AF2)*12 ->  | AH29: =($AB$29*('Production Assumptions'!$C$6)^AG2)*12 ->  | AI29: =($AB$29*('Production Assumptions'!$C$6)^AH2)*12 ->  | AJ29: =($AB$29*('Production Assumptions'!$C$6)^AI2)*12 -> 
B30: TOTAL FIXED COST: | C30: =SUM(C19:C29) -> 
B32: TOTAL EXPENSES: | C32: =C16+C30 -> 
B34: PROFIT OR LOSS: | C34: =C7-C32 -> 
AC37: =AC32/AC7 -> 

Sheet Working Capital - RAS
A1: WORKING CAPITAL - RAS
B3: WORKING CAPITAL
C4: Month 1 | D4: Month 2 | E4: Month 3 | F4: Month 4 | G4: Month 5 | H4: Month 6 | I4: TOTAL
B5: VARIABLE COSTS:
B6: ='OPEX - RAS'!B10 -> Breeding Fish | C6: ='OPEX - RAS'!D10 -> 20000 | D6: ='OPEX - RAS'!E10 -> 0 | E6: ='OPEX - RAS'!F10 -> 0 | F6: ='OPEX - RAS'!G10 -> 0 | G6: ='OPEX - RAS'!H10 -> 0 | H6: ='OPEX - RAS'!I10 -> 0 | I6: =IF(Interface!$E$18=Validation!$D$39,C6,IF(Interface!$E$18=Validation!$D$40,SUM(C6:D6),IF(Interface!$E$18=Validation!$D$41,SUM(C6:E6),IF(Interface!$E$18=Validation!$D$42,SUM(C6:F6),IF(Interface!$E$18=Validation!$D$43,SUM(C6:G6),IF(Interface!$E$18=Validation!$D$44,SUM(C6:H6),IF(Interface!$E$18=Validation!$D$45,SUM(C6:H6),IF(Interface!$E$18=Validation!$D$46,SUM(C6:H6),IF(Interface!$E$18=Validation!$D$47,SUM(C6:H6),))))))))) -> 20000
B7: ='OPEX - RAS'!B11 -> Feed | C7: ='OPEX - RAS'!D11 ->  | D7: ='OPEX - RAS'!E11 ->  | E7: ='OPEX - RAS'!F11 ->  | F7: ='OPEX - RAS'!G11 ->  | G7: ='OPEX - RAS'!H11 ->  | H7: ='OPEX - RAS'!I11 ->  | I7: =IF(Interface!$E$18=Validation!$D$39,C7,IF(Interface!$E$18=Validation!$D$40,SUM(C7:D7),IF(Interface!$E$18=Validation!$D$41,SUM(C7:E7),IF(Interface!$E$18=Validation!$D$42,SUM(C7:F7),IF(Interface!$E$18=Validation!$D$43,SUM(C7:G7),IF(Interface!$E$18=Validation!$D$44,SUM(C7:H7),IF(Interface!$E$18=Validation!$D$45,SUM(C7:H7),IF(Interface!$E$18=Validation!$D$46,SUM(C7:H7),IF(Interface!$E$18=Validation!$D$47,SUM(C7:H7),))))))))) -> 
B8: ='OPEX - RAS'!B12 -> Freight (per 100 fish) | C8: ='OPEX - RAS'!D12 -> 300 | D8: ='OPEX - RAS'!E12 -> 300 | E8: ='OPEX - RAS'!F12 -> 300 | F8: ='OPEX - RAS'!G12 -> 300 | G8: ='OPEX - RAS'!H12 -> 300 | H8: ='OPEX - RAS'!I12 ->  | I8: =IF(Interface!$E$18=Validation!$D$39,C8,IF(Interface!$E$18=Validation!$D$40,SUM(C8:D8),IF(Interface!$E$18=Validation!$D$41,SUM(C8:E8),IF(Interface!$E$18=Validation!$D$42,SUM(C8:F8),IF(Interface!$E$18=Validation!$D$43,SUM(C8:G8),IF(Interface!$E$18=Validation!$D$44,SUM(C8:H8),IF(Interface!$E$18=Validation!$D$45,SUM(C8:H8),IF(Interface!$E$18=Validation!$D$46,SUM(C8:H8),IF(Interface!$E$18=Validation!$D$47,SUM(C8:H8),))))))))) -> 
B9: ='OPEX - RAS'!B13 -> Packaging | C9: ='OPEX - RAS'!D13 -> 0 | D9: ='OPEX - RAS'!E13 -> 0 | E9: ='OPEX - RAS'!F13 -> 0 | F9: ='OPEX - RAS'!G13 -> 0 | G9: ='OPEX - RAS'!H13 -> 0 | H9: ='OPEX - RAS'!I13 ->  | I9: =IF(Interface!$E$18=Validation!$D$39,C9,IF(Interface!$E$18=Validation!$D$40,SUM(C9:D9),IF(Interface!$E$18=Validation!$D$41,SUM(C9:E9),IF(Interface!$E$18=Validation!$D$42,SUM(C9:F9),IF(Interface!$E$18=Validation!$D$43,SUM(C9:G9),IF(Interface!$E$18=Validation!$D$44,SUM(C9:H9),IF(Interface!$E$18=Validation!$D$45,SUM(C9:H9),IF(Interface!$E$18=Validation!$D$46,SUM(C9:H9),IF(Interface!$E$18=Validation!$D$47,SUM(C9:H9),))))))))) -> 
B10: ='OPEX - RAS'!B14 -> Chemicals | C10: ='OPEX - RAS'!D14 ->  | D10: ='OPEX - RAS'!E14 ->  | E10: ='OPEX - RAS'!F14 ->  | F10: ='OPEX - RAS'!G14 ->  | G10: ='OPEX - RAS'!H14 ->  | H10: ='OPEX - RAS'!I14 ->  | I10: =IF(Interface!$E$18=Validation!$D$39,C10,IF(Interface!$E$18=Validation!$D$40,SUM(C10:D10),IF(Interface!$E$18=Validation!$D$41,SUM(C10:E10),IF(Interface!$E$18=Validation!$D$42,SUM(C10:F10),IF(Interface!$E$18=Validation!$D$43,SUM(C10:G10),IF(Interface!$E$18=Validation!$D$44,SUM(C10:H10),IF(Interface!$E$18=Validation!$D$45,SUM(C10:H10),IF(Interface!$E$18=Validation!$D$46,SUM(C10:H10),IF(Interface!$E$18=Validation!$D$47,SUM(C10:H10),))))))))) -> 
B11: ='OPEX - RAS'!B15 -> Consumables | C11: ='OPEX - RAS'!D15 ->  | D11: ='OPEX - RAS'!E15 ->  | E11: ='OPEX - RAS'!F15 ->  | F11: ='OPEX - RAS'!G15 ->  | G11: ='OPEX - RAS'!H15 ->  | H11: ='OPEX - RAS'!I15 ->  | I11: =IF(Interface!$E$18=Validation!$D$39,C11,IF(Interface!$E$18=Validation!$D$40,SUM(C11:D11),IF(Interface!$E$18=Validation!$D$41,SUM(C11:E11),IF(Interface!$E$18=Validation!$D$42,SUM(C11:F11),IF(Interface!$E$18=Validation!$D$43,SUM(C11:G11),IF(Interface!$E$18=Validation!$D$44,SUM(C11:H11),IF(Interface!$E$18=Validation!$D$45,SUM(C11:H11),IF(Interface!$E$18=Validation!$D$46,SUM(C11:H11),IF(Interface!$E$18=Validation!$D$47,SUM(C11:H11),))))))))) -> 
B12: TOTAL VARIABLE COST: | C12: =SUM(C6:C11) ->  | D12: =SUM(D6:D11) -> 
B14: FIXED COSTS:
B15: ='OPEX - RAS'!B19 -> Salaries - Staff | C15: ='OPEX - RAS'!D19 -> 15000 | D15: ='OPEX - RAS'!E19 -> 15000 | E15: ='OPEX - RAS'!F19 -> 15000 | F15: ='OPEX - RAS'!G19 -> 15000 | G15: ='OPEX - RAS'!H19 -> 15000 | H15: ='OPEX - RAS'!I19 -> 15000 | I15: =IF(Interface!$E$18=Validation!$D$39,C15,IF(Interface!$E$18=Validation!$D$40,SUM(C15:D15),IF(Interface!$E$18=Validation!$D$41,SUM(C15:E15),IF(Interface!$E$18=Validation!$D$42,SUM(C15:F15),IF(Interface!$E$18=Validation!$D$43,SUM(C15:G15),IF(Interface!$E$18=Validation!$D$44,SUM(C15:H15),IF(Interface!$E$18=Validation!$D$45,SUM(C15:H15),IF(Interface!$E$18=Validation!$D$46,SUM(C15:H15),IF(Interface!$E$18=Validation!$D$47,SUM(C15:H15),))))))))) -> 90000
B16: ='OPEX - RAS'!B20 -> Telephone Expenses | C16: ='OPEX - RAS'!D20 -> 1000 | D16: ='OPEX - RAS'!E20 -> 1000 | E16: ='OPEX - RAS'!F20 -> 1000 | F16: ='OPEX - RAS'!G20 -> 1000 | G16: ='OPEX - RAS'!H20 -> 1000 | H16: ='OPEX - RAS'!I20 -> 1000 | I16: =IF(Interface!$E$18=Validation!$D$39,C16,IF(Interface!$E$18=Validation!$D$40,SUM(C16:D16),IF(Interface!$E$18=Validation!$D$41,SUM(C16:E16),IF(Interface!$E$18=Validation!$D$42,SUM(C16:F16),IF(Interface!$E$18=Validation!$D$43,SUM(C16:G16),IF(Interface!$E$18=Validation!$D$44,SUM(C16:H16),IF(Interface!$E$18=Validation!$D$45,SUM(C16:H16),IF(Interface!$E$18=Validation!$D$46,SUM(C16:H16),IF(Interface!$E$18=Validation!$D$47,SUM(C16:H16),))))))))) -> 6000
B17: ='OPEX - RAS'!B21 -> Electricity | C17: ='OPEX - RAS'!D21 -> 2125.5 | D17: ='OPEX - RAS'!E21 -> 2125.5 | E17: ='OPEX - RAS'!F21 -> 2125.5 | F17: ='OPEX - RAS'!G21 -> 2125.5 | G17: ='OPEX - RAS'!H21 -> 2125.5 | H17: ='OPEX - RAS'!I21 -> 2125.5 | I17: =IF(Interface!$E$18=Validation!$D$39,C17,IF(Interface!$E$18=Validation!$D$40,SUM(C17:D17),IF(Interface!$E$18=Validation!$D$41,SUM(C17:E17),IF(Interface!$E$18=Validation!$D$42,SUM(C17:F17),IF(Interface!$E$18=Validation!$D$43,SUM(C17:G17),IF(Interface!$E$18=Validation!$D$44,SUM(C17:H17),IF(Interface!$E$18=Validation!$D$45,SUM(C17:H17),IF(Interface!$E$18=Validation!$D$46,SUM(C17:H17),IF(Interface!$E$18=Validation!$D$47,SUM(C17:H17),))))))))) -> 12753
B18: ='OPEX - RAS'!B22 -> Legal & licencing | C18: ='OPEX - RAS'!D22 -> 4500 | D18: ='OPEX - RAS'!E22 -> 0 | E18: ='OPEX - RAS'!F22 -> 0 | F18: ='OPEX - RAS'!G22 -> 0 | G18: ='OPEX - RAS'!H22 -> 0 | H18: ='OPEX - RAS'!I22 -> 0 | I18: =IF(Interface!$E$18=Validation!$D$39,C18,IF(Interface!$E$18=Validation!$D$40,SUM(C18:D18),IF(Interface!$E$18=Validation!$D$41,SUM(C18:E18),IF(Interface!$E$18=Validation!$D$42,SUM(C18:F18),IF(Interface!$E$18=Validation!$D$43,SUM(C18:G18),IF(Interface!$E$18=Validation!$D$44,SUM(C18:H18),IF(Interface!$E$18=Validation!$D$45,SUM(C18:H18),IF(Interface!$E$18=Validation!$D$46,SUM(C18:H18),IF(Interface!$E$18=Validation!$D$47,SUM(C18:H18),))))))))) -> 4500
B19: ='OPEX - RAS'!B23 -> Health and safety apparel | C19: ='OPEX - RAS'!D23 -> 2000 | D19: ='OPEX - RAS'!E23 -> 0 | E19: ='OPEX - RAS'!F23 -> 0 | F19: ='OPEX - RAS'!G23 -> 0 | G19: ='OPEX - RAS'!H23 -> 0 | H19: ='OPEX - RAS'!I23 -> 0 | I19: =IF(Interface!$E$18=Validation!$D$39,C19,IF(Interface!$E$18=Validation!$D$40,SUM(C19:D19),IF(Interface!$E$18=Validation!$D$41,SUM(C19:E19),IF(Interface!$E$18=Validation!$D$42,SUM(C19:F19),IF(Interface!$E$18=Validation!$D$43,SUM(C19:G19),IF(Interface!$E$18=Validation!$D$44,SUM(C19:H19),IF(Interface!$E$18=Validation!$D$45,SUM(C19:H19),IF(Interface!$E$18=Validation!$D$46,SUM(C19:H19),IF(Interface!$E$18=Validation!$D$47,SUM(C19:H19),))))))))) -> 2000
B20: ='OPEX - RAS'!B24 -> stationary | C20: ='OPEX - RAS'!D24 -> 100 | D20: ='OPEX - RAS'!E24 -> 100 | E20: ='OPEX - RAS'!F24 -> 100 | F20: ='OPEX - RAS'!G24 -> 100 | G20: ='OPEX - RAS'!H24 -> 100 | H20: ='OPEX - RAS'!I24 -> 100 | I20: =IF(Interface!$E$18=Validation!$D$39,C20,IF(Interface!$E$18=Validation!$D$40,SUM(C20:D20),IF(Interface!$E$18=Validation!$D$41,SUM(C20:E20),IF(Interface!$E$18=Validation!$D$42,SUM(C20:F20),IF(Interface!$E$18=Validation!$D$43,SUM(C20:G20),IF(Interface!$E$18=Validation!$D$44,SUM(C20:H20),IF(Interface!$E$18=Validation!$D$45,SUM(C20:H20),IF(Interface!$E$18=Validation!$D$46,SUM(C20:H20),IF(Interface!$E$18=Validation!$D$47,SUM(C20:H20),))))))))) -> 600
B21: ='OPEX - RAS'!B25 -> Cleaning materials | C21: ='OPEX - RAS'!D25 -> 800 | D21: ='OPEX - RAS'!E25 -> 800 | E21: ='OPEX - RAS'!F25 -> 800 | F21: ='OPEX - RAS'!G25 -> 800 | G21: ='OPEX - RAS'!H25 -> 800 | H21: ='OPEX - RAS'!I25 -> 800 | I21: =IF(Interface!$E$18=Validation!$D$39,C21,IF(Interface!$E$18=Validation!$D$40,SUM(C21:D21),IF(Interface!$E$18=Validation!$D$41,SUM(C21:E21),IF(Interface!$E$18=Validation!$D$42,SUM(C21:F21),IF(Interface!$E$18=Validation!$D$43,SUM(C21:G21),IF(Interface!$E$18=Validation!$D$44,SUM(C21:H21),IF(Interface!$E$18=Validation!$D$45,SUM(C21:H21),IF(Interface!$E$18=Validation!$D$46,SUM(C21:H21),IF(Interface!$E$18=Validation!$D$47,SUM(C21:H21),))))))))) -> 4800
B22: ='OPEX - RAS'!B26 -> Vet Services | C22: ='OPEX - RAS'!D26 -> 5000 | D22: ='OPEX - RAS'!E26 -> 0 | E22: ='OPEX - RAS'!F26 -> 0 | F22: ='OPEX - RAS'!G26 -> 5000 | G22: ='OPEX - RAS'!H26 -> 0 | H22: ='OPEX - RAS'!I26 -> 0 | I22: =IF(Interface!$E$18=Validation!$D$39,C22,IF(Interface!$E$18=Validation!$D$40,SUM(C22:D22),IF(Interface!$E$18=Validation!$D$41,SUM(C22:E22),IF(Interface!$E$18=Validation!$D$42,SUM(C22:F22),IF(Interface!$E$18=Validation!$D$43,SUM(C22:G22),IF(Interface!$E$18=Validation!$D$44,SUM(C22:H22),IF(Interface!$E$18=Validation!$D$45,SUM(C22:H22),IF(Interface!$E$18=Validation!$D$46,SUM(C22:H22),IF(Interface!$E$18=Validation!$D$47,SUM(C22:H22),))))))))) -> 10000
B23: ='OPEX - RAS'!B27 -> Bank Charges | C23: ='OPEX - RAS'!D27 -> 60 | D23: ='OPEX - RAS'!E27 -> 60 | E23: ='OPEX - RAS'!F27 -> 60 | F23: ='OPEX - RAS'!G27 -> 60 | G23: ='OPEX - RAS'!H27 -> 60 | H23: ='OPEX - RAS'!I27 ->  | I23: =IF(Interface!$E$18=Validation!$D$39,C23,IF(Interface!$E$18=Validation!$D$40,SUM(C23:D23),IF(Interface!$E$18=Validation!$D$41,SUM(C23:E23),IF(Interface!$E$18=Validation!$D$42,SUM(C23:F23),IF(Interface!$E$18=Validation!$D$43,SUM(C23:G23),IF(Interface!$E$18=Validation!$D$44,SUM(C23:H23),IF(Interface!$E$18=Validation!$D$45,SUM(C23:H23),IF(Interface!$E$18=Validation!$D$46,SUM(C23:H23),IF(Interface!$E$18=Validation!$D$47,SUM(C23:H23),))))))))) -> 
B24: ='OPEX - RAS'!B28 -> Marketing | C24: ='OPEX - RAS'!D28 ->  | D24: ='OPEX - RAS'!E28 ->  | E24: ='OPEX - RAS'!F28 ->  | F24: ='OPEX - RAS'!G28 ->  | G24: ='OPEX - RAS'!H28 ->  | H24: ='OPEX - RAS'!I28 ->  | I24: =IF(Interface!$E$18=Validation!$D$39,C24,IF(Interface!$E$18=Validation!$D$40,SUM(C24:D24),IF(Interface!$E$18=Validation!$D$41,SUM(C24:E24),IF(Interface!$E$18=Validation!$D$42,SUM(C24:F24),IF(Interface!$E$18=Validation!$D$43,SUM(C24:G24),IF(Interface!$E$18=Validation!$D$44,SUM(C24:H24),IF(Interface!$E$18=Validation!$D$45,SUM(C24:H24),IF(Interface!$E$18=Validation!$D$46,SUM(C24:H24),IF(Interface!$E$18=Validation!$D$47,SUM(C24:H24),))))))))) -> 
B25: ='OPEX - RAS'!B29 -> Reserve & Unforeseen Cost | C25: ='OPEX - RAS'!D29 ->  | D25: ='OPEX - RAS'!E29 ->  | E25: ='OPEX - RAS'!F29 ->  | F25: ='OPEX - RAS'!G29 ->  | G25: ='OPEX - RAS'!H29 ->  | H25: ='OPEX - RAS'!I29 ->  | I25: =IF(Interface!$E$18=Validation!$D$39,C25,IF(Interface!$E$18=Validation!$D$40,SUM(C25:D25),IF(Interface!$E$18=Validation!$D$41,SUM(C25:E25),IF(Interface!$E$18=Validation!$D$42,SUM(C25:F25),IF(Interface!$E$18=Validation!$D$43,SUM(C25:G25),IF(Interface!$E$18=Validation!$D$44,SUM(C25:H25),IF(Interface!$E$18=Validation!$D$45,SUM(C25:H25),IF(Interface!$E$18=Validation!$D$46,SUM(C25:H25),IF(Interface!$E$18=Validation!$D$47,SUM(C25:H25),))))))))) -> 
B26: TOTAL FIXED COST: | C26: =SUM(C15:C25) -> 
B28: TOTAL EXPENSES: | C28: =SUM(C26,C12) -> 
B30: TOTAL WORKING CAPITAL FOR 6 MONTHS
B31: Items | C31: Cost
B32: Variable | C32: =I12 -> 
B33: Fixed cost | C33: =I26 -> 
B34: Total | C34: =SUM(C32:C33) -> 

Sheet IS - RAS
A1: INCOME STATEMENT - RAS
B3: Projected Income Statement | C3: Year
C4: YEAR 0 | D4: YEAR 1 | E4: YEAR 2 | F4: YEAR 3 | G4: YEAR 4 | H4: YEAR 5 | I4: YEAR 6 | J4: YEAR 7 | K4: YEAR 8 | L4: YEAR 9 | M4: YEAR 10 | N4: NO POSITIVE
B5: Revenue
B6: ='OPEX - RAS'!B6 -> Marine Ornamentals (Selling stock) | D6: ='OPEX - RAS'!C7 ->  | E6: ='OPEX - RAS'!P7 ->  | F6: ='OPEX - RAS'!AC7 ->  | G6: ='OPEX - RAS'!AD7 ->  | H6: ='OPEX - RAS'!AE7 ->  | I6: ='OPEX - RAS'!AF7 ->  | J6: ='OPEX - RAS'!AG7 ->  | K6: ='OPEX - RAS'!AH7 ->  | L6: ='OPEX - RAS'!AI7 ->  | M6: ='OPEX - RAS'!AJ7 -> 
B7: Total Revenue | D7: =SUM(D6:D6) -> 
B9: Variable Costs (Cost of Sales)
B10: ='OPEX - RAS'!B10 -> Breeding Fish | D10: =-'OPEX - RAS'!C10 -> -20000 | E10: =-'OPEX - RAS'!P10 -> 0 | F10: =-'OPEX - RAS'!AC10 -> 0 | G10: =-'OPEX - RAS'!AD10 -> -23218.71302 | H10: =-'OPEX - RAS'!AE10 -> 0 | I10: =-'OPEX - RAS'!AF10 -> 0 | J10: =-'OPEX - RAS'!AG10 -> -26955.43172 | K10: =-'OPEX - RAS'!AH10 -> 0 | L10: =-'OPEX - RAS'!AI10 -> 0 | M10: =-'OPEX - RAS'!AJ10 -> -31293.52167
B11: ='OPEX - RAS'!B11 -> Feed | D11: =-'OPEX - RAS'!C11 ->  | E11: =-'OPEX - RAS'!P11 ->  | F11: =-'OPEX - RAS'!AC11 ->  | G11: =-'OPEX - RAS'!AD11 ->  | H11: =-'OPEX - RAS'!AE11 ->  | I11: =-'OPEX - RAS'!AF11 ->  | J11: =-'OPEX - RAS'!AG11 ->  | K11: =-'OPEX - RAS'!AH11 ->  | L11: =-'OPEX - RAS'!AI11 ->  | M11: =-'OPEX - RAS'!AJ11 -> 
B12: ='OPEX - RAS'!B12 -> Freight (per 100 fish) | D12: =-'OPEX - RAS'!C12 ->  | E12: =-'OPEX - RAS'!P12 ->  | F12: =-'OPEX - RAS'!AC12 ->  | G12: =-'OPEX - RAS'!AD12 ->  | H12: =-'OPEX - RAS'!AE12 ->  | I12: =-'OPEX - RAS'!AF12 ->  | J12: =-'OPEX - RAS'!AG12 ->  | K12: =-'OPEX - RAS'!AH12 ->  | L12: =-'OPEX - RAS'!AI12 ->  | M12: =-'OPEX - RAS'!AJ12 -> 
B13: ='OPEX - RAS'!B13 -> Packaging | D13: =-'OPEX - RAS'!C13 ->  | E13: =-'OPEX - RAS'!P13 ->  | F13: =-'OPEX - RAS'!AC13 ->  | G13: =-'OPEX - RAS'!AD13 ->  | H13: =-'OPEX - RAS'!AE13 ->  | I13: =-'OPEX - RAS'!AF13 ->  | J13: =-'OPEX - RAS'!AG13 ->  | K13: =-'OPEX - RAS'!AH13 ->  | L13: =-'OPEX - RAS'!AI13 ->  | M13: =-'OPEX - RAS'!AJ13 -> 
B14: ='OPEX - RAS'!B14 -> Chemicals | D14: =-'OPEX - RAS'!C14 ->  | E14: =-'OPEX - RAS'!P14 ->  | F14: =-'OPEX - RAS'!AC14 ->  | G14: =-'OPEX - RAS'!AD14 ->  | H14: =-'OPEX - RAS'!AE14 ->  | I14: =-'OPEX - RAS'!AF14 ->  | J14: =-'OPEX - RAS'!AG14 ->  | K14: =-'OPEX - RAS'!AH14 ->  | L14: =-'OPEX - RAS'!AI14 ->  | M14: =-'OPEX - RAS'!AJ14 -> 
B15: ='OPEX - RAS'!B15 -> Consumables | D15: =-'OPEX - RAS'!C15 ->  | E15: =-'OPEX - RAS'!P15 ->  | F15: =-'OPEX - RAS'!AC15 ->  | G15: =-'OPEX - RAS'!AD15 ->  | H15: =-'OPEX - RAS'!AE15 ->  | I15: =-'OPEX - RAS'!AF15 ->  | J15: =-'OPEX - RAS'!AG15 ->  | K15: =-'OPEX - RAS'!AH15 ->  | L15: =-'OPEX - RAS'!AI15 ->  | M15: =-'OPEX - RAS'!AJ15 -> 
B16: Total Variable Costs (Cost of Sales) | D16: =SUM(D10:D15) ->  | E16: =SUM(E10:E15) -> 
B18: Gross Profit | D18: =D7+D16 -> 
B19: Gross Profit % | D19: =D18/D7 -> 
B21: Fixed Costs
B22: Salaries and wages | D22: =-SUM(D23:D24) -> -180000 | E22: -189180 | F22: -198828.18 | G22: -208968.4172 | H22: -219625.8065 | I22: -230826.7226 | J22: -242598.8854 | K22: -254971.4286 | L22: -267974.9715 | M22: -281641.695
B23: =HR!B7 -> Owner | D23: =HR!D7 -> 0 | E23: =HR!AD7 -> 0 | F23: =HR!AF7 -> 0 | G23: =HR!AH7 -> 0 | H23: =HR!AJ7 -> 0 | I23: =HR!AL7 -> 0 | J23: =HR!AN7 -> 0 | K23: =HR!AP7 -> 0 | L23: =HR!AR7 -> 0 | M23: =HR!AT7 -> 0
B24: =HR!B8 -> Low Skilled | D24: =HR!D8 -> 180000 | E24: =HR!AD8 -> 189180 | F24: =HR!AF8 -> 198828.18 | G24: =HR!AH8 -> 208968.4172 | H24: =HR!AJ8 -> 219625.8065 | I24: =HR!AL8 -> 230826.7226 | J24: =HR!AN8 -> 242598.8854 | K24: =HR!AP8 -> 254971.4286 | L24: =HR!AR8 -> 267974.9715 | M24: =HR!AT8 -> 281641.695
B25: General Expenses | D25: =SUM(D26:D35) -> 
B26: ='OPEX - RAS'!B20 -> Telephone Expenses | D26: =-'OPEX - RAS'!C20 -> -12000 | E26: =-'OPEX - RAS'!P20 -> -12612 | F26: =-'OPEX - RAS'!AC20 -> -13255.212 | G26: =-'OPEX - RAS'!AD20 -> -13931.22781 | H26: =-'OPEX - RAS'!AE20 -> -14641.72043 | I26: =-'OPEX - RAS'!AF20 -> -15388.44817 | J26: =-'OPEX - RAS'!AG20 -> -16173.25903 | K26: =-'OPEX - RAS'!AH20 -> -16998.09524 | L26: =-'OPEX - RAS'!AI20 -> -17864.9981 | M26: =-'OPEX - RAS'!AJ20 -> -18776.113
B27: ='OPEX - RAS'!B21 -> Electricity | D27: =-'OPEX - RAS'!C21 -> -25506 | E27: =-'OPEX - RAS'!P21 -> -26806.806 | F27: =-'OPEX - RAS'!AC21 -> -28173.95311 | G27: =-'OPEX - RAS'!AD21 -> -29610.82471 | H27: =-'OPEX - RAS'!AE21 -> -31120.97677 | I27: =-'OPEX - RAS'!AF21 -> -32708.14659 | J27: =-'OPEX - RAS'!AG21 -> -34376.26207 | K27: =-'OPEX - RAS'!AH21 -> -36129.45143 | L27: =-'OPEX - RAS'!AI21 -> -37972.05345 | M27: =-'OPEX - RAS'!AJ21 -> -39908.62818
B28: ='OPEX - RAS'!B22 -> Legal & licencing | D28: =-'OPEX - RAS'!C22 -> -4500 | E28: =-'OPEX - RAS'!P22 -> 0 | F28: =-'OPEX - RAS'!AC22 -> 0 | G28: =-'OPEX - RAS'!AD22 -> 0 | H28: =-'OPEX - RAS'!AE22 -> -5490.645161 | I28: =-'OPEX - RAS'!AF22 -> 0 | J28: =-'OPEX - RAS'!AG22 -> 0 | K28: =-'OPEX - RAS'!AH22 -> 0 | L28: =-'OPEX - RAS'!AI22 -> 0 | M28: =-'OPEX - RAS'!AJ22 -> 0
B29: ='OPEX - RAS'!B23 -> Health and safety apparel | D29: =-'OPEX - RAS'!C23 -> -2000 | E29: =-'OPEX - RAS'!P23 -> -2102 | F29: =-'OPEX - RAS'!AC23 -> -2209.202 | G29: =-'OPEX - RAS'!AD23 -> -2321.871302 | H29: =-'OPEX - RAS'!AE23 -> -2440.286738 | I29: =-'OPEX - RAS'!AF23 -> -2564.741362 | J29: =-'OPEX - RAS'!AG23 -> -2695.543172 | K29: =-'OPEX - RAS'!AH23 -> -2833.015873 | L29: =-'OPEX - RAS'!AI23 -> -2977.499683 | M29: =-'OPEX - RAS'!AJ23 -> -3129.352167
B30: ='OPEX - RAS'!B24 -> stationary | D30: =-'OPEX - RAS'!C24 -> -1200 | E30: =-'OPEX - RAS'!P24 -> -1261.2 | F30: =-'OPEX - RAS'!AC24 -> -1325.5212 | G30: =-'OPEX - RAS'!AD24 -> -1393.122781 | H30: =-'OPEX - RAS'!AE24 -> -1464.172043 | I30: =-'OPEX - RAS'!AF24 -> -1538.844817 | J30: =-'OPEX - RAS'!AG24 -> -1617.325903 | K30: =-'OPEX - RAS'!AH24 -> -1699.809524 | L30: =-'OPEX - RAS'!AI24 -> -1786.49981 | M30: =-'OPEX - RAS'!AJ24 -> -1877.6113
B31: ='OPEX - RAS'!B25 -> Cleaning materials | D31: =-'OPEX - RAS'!C25 -> -9600 | E31: =-'OPEX - RAS'!P25 -> -10089.6 | F31: =-'OPEX - RAS'!AC25 -> -10604.1696 | G31: =-'OPEX - RAS'!AD25 -> -11144.98225 | H31: =-'OPEX - RAS'!AE25 -> -11713.37634 | I31: =-'OPEX - RAS'!AF25 -> -12310.75854 | J31: =-'OPEX - RAS'!AG25 -> -12938.60722 | K31: =-'OPEX - RAS'!AH25 -> -13598.47619 | L31: =-'OPEX - RAS'!AI25 -> -14291.99848 | M31: =-'OPEX - RAS'!AJ25 -> -15020.8904
B32: ='OPEX - RAS'!B26 -> Vet Services | D32: =-'OPEX - RAS'!C26 -> -20000 | E32: =-'OPEX - RAS'!P26 -> -21020 | F32: =-'OPEX - RAS'!AC26 -> -22092.02 | G32: =-'OPEX - RAS'!AD26 -> -23218.71302 | H32: =-'OPEX - RAS'!AE26 -> -24402.86738 | I32: =-'OPEX - RAS'!AF26 -> -25647.41362 | J32: =-'OPEX - RAS'!AG26 -> -26955.43172 | K32: =-'OPEX - RAS'!AH26 -> -28330.15873 | L32: =-'OPEX - RAS'!AI26 -> -29774.99683 | M32: =-'OPEX - RAS'!AJ26 -> -31293.52167
B33: ='OPEX - RAS'!B27 -> Bank Charges | D33: =-'OPEX - RAS'!C27 ->  | E33: =-'OPEX - RAS'!P27 ->  | F33: =-'OPEX - RAS'!AC27 ->  | G33: =-'OPEX - RAS'!AD27 ->  | H33: =-'OPEX - RAS'!AE27 ->  | I33: =-'OPEX - RAS'!AF27 ->  | J33: =-'OPEX - RAS'!AG27 ->  | K33: =-'OPEX - RAS'!AH27 ->  | L33: =-'OPEX - RAS'!AI27 ->  | M33: =-'OPEX - RAS'!AJ27 -> 
B34: ='OPEX - RAS'!B28 -> Marketing | D34: =-'OPEX - RAS'!C28 ->  | E34: =-'OPEX - RAS'!P28 ->  | F34: =-'OPEX - RAS'!AC28 ->  | G34: =-'OPEX - RAS'!AD28 ->  | H34: =-'OPEX - RAS'!AE28 ->  | I34: =-'OPEX - RAS'!AF28 ->  | J34: =-'OPEX - RAS'!AG28 ->  | K34: =-'OPEX - RAS'!AH28 ->  | L34: =-'OPEX - RAS'!AI28 ->  | M34: =-'OPEX - RAS'!AJ28 -> 
B35: ='OPEX - RAS'!B29 -> Reserve & Unforeseen Cost | D35: =-'OPEX - RAS'!C29 ->  | E35: =-'OPEX - RAS'!P29 ->  | F35: =-'OPEX - RAS'!AC29 ->  | G35: =-'OPEX - RAS'!AD29 ->  | H35: =-'OPEX - RAS'!AE29 ->  | I35: =-'OPEX - RAS'!AF29 ->  | J35: =-'OPEX - RAS'!AG29 ->  | K35: =-'OPEX - RAS'!AH29 ->  | L35: =-'OPEX - RAS'!AI29 ->  | M35: =-'OPEX - RAS'!AJ29 -> 
B36: Total Fixed Costs | D36: =D25+D22 -> 
B37: TOTAL COSTS | D37: =-(D16+D36) -> 
B38: Depreciation | D38: =-'DEP - RAS'!F27 ->  | E38: =-'DEP - RAS'!G27 ->  | F38: =-'DEP - RAS'!H27 ->  | G38: =-'DEP - RAS'!I27 ->  | H38: =-'DEP - RAS'!J27 ->  | I38: =-'DEP - RAS'!K27 ->  | J38: =-'DEP - RAS'!L27 ->  | K38: =-'DEP - RAS'!M27 ->  | L38: =-'DEP - RAS'!N27 ->  | M38: =-'DEP - RAS'!O27 -> 
B40: Profit / (Loss) before Interest & Tax | D40: =D16+D36+D38+D7 -> 
B42: Interest | D42: =IF(Interface!$H$15="DEBT",-'Loan Int & Bal - RAS'!B3,IF(Interface!$H$15="DEBT/EQUITY",-'Loan Int & Bal - RAS'!B3,0)) -> 0 | E42: =IF(Interface!$H$15="DEBT",-'Loan Int & Bal - RAS'!C3,IF(Interface!$H$15="DEBT/EQUITY",-'Loan Int & Bal - RAS'!C3,0)) -> 0 | F42: =IF(Interface!$H$15="DEBT",-'Loan Int & Bal - RAS'!D3,IF(Interface!$H$15="DEBT/EQUITY",-'Loan Int & Bal - RAS'!D3,0)) -> 0 | G42: =IF(Interface!$H$15="DEBT",-'Loan Int & Bal - RAS'!E3,IF(Interface!$H$15="DEBT/EQUITY",-'Loan Int & Bal - RAS'!E3,0)) -> 0 | H42: =IF(Interface!$H$15="DEBT",-'Loan Int & Bal - RAS'!F3,IF(Interface!$H$15="DEBT/EQUITY",-'Loan Int & Bal - RAS'!F3,0)) -> 0 | I42: =IF(Interface!$H$15="DEBT",-'Loan Int & Bal - RAS'!G3,IF(Interface!$H$15="DEBT/EQUITY",-'Loan Int & Bal - RAS'!G3,0)) -> 0 | J42: =IF(Interface!$H$15="DEBT",-'Loan Int & Bal - RAS'!H3,IF(Interface!$H$15="DEBT/EQUITY",-'Loan Int & Bal - RAS'!H3,0)) -> 0 | K42: =IF(Interface!$H$15="DEBT",-'Loan Int & Bal - RAS'!I3,IF(Interface!$H$15="DEBT/EQUITY",-'Loan Int & Bal - RAS'!I3,0)) -> 0 | L42: =IF(Interface!$H$15="DEBT",-'Loan Int & Bal - RAS'!J3,IF(Interface!$H$15="DEBT/EQUITY",-'Loan Int & Bal - RAS'!J3,0)) -> 0 | M42: =IF(Interface!$H$15="DEBT",-'Loan Int & Bal - RAS'!K3,IF(Interface!$H$15="DEBT/EQUITY",-'Loan Int & Bal - RAS'!K3,0)) -> 0
B43: Taxation | D43: =-IF((D40)*28%>0, (D40)*28%, 0) ->  | E43: =-IF((E40)*28%>0, (E40)*28%, 0) ->  | F43: =-IF((F40)*28%>0, (F40)*28%, 0) ->  | G43: =-IF((G40)*28%>0, (G40)*28%, 0) -> 
B45: Profit / (Loss) for the year | C45: -1 | D45: =D40+D43+D42 ->  | E45: =E40+E43+E42 ->  | N45: 1
B46: Profit / (Loss) % | D46: =D45/D7 -> 
B48: Breakeven | C48: -1 | D48: =D7-D37 ->  | N48: 0

Sheet BS - RAS
A2: Projected Balance Sheet | B2: Year
B3: YEAR 1 | C3: YEAR 2 | D3: YEAR 3 | E3: YEAR 4 | F3: YEAR 5 | G3: YEAR 6 | H3: YEAR 7 | I3: YEAR 8 | J3: YEAR 9 | K3: YEAR 10
A4: Fixed Assets
A5: Net Property, Plant & Equipment | B5: ='CAPEX '!J31+'IS - RAS'!D38 ->  | C5: =(B5+'IS - RAS'!E38) ->  | D5: =(C5+'IS - RAS'!F38) ->  | E5: =(D5+'IS - RAS'!G38) ->  | F5: =(E5+'IS - RAS'!H38) ->  | G5: =(F5+'IS - RAS'!I38) ->  | H5: =(G5+'IS - RAS'!J38) ->  | I5: =(H5+'IS - RAS'!K38) ->  | J5: =(I5+'IS - RAS'!L38) ->  | K5: =(J5+'IS - RAS'!M38) -> 
A6: Current Assets
A7: Inventory | B7: 0 | C7: 0 | D7: 0 | E7: 0 | F7: 0 | G7: 0 | H7: 0 | I7: 0 | J7: 0 | K7: 0
A8: Debtors | B8: ='Production Assumptions'!C50 ->  | C8: ='Production Assumptions'!D50 ->  | D8: ='Production Assumptions'!E50 ->  | E8: ='Production Assumptions'!F50 ->  | F8: ='Production Assumptions'!G50 ->  | G8: ='Production Assumptions'!H50 ->  | H8: ='Production Assumptions'!I50 ->  | I8: ='Production Assumptions'!J50 ->  | J8: ='Production Assumptions'!K50 ->  | K8: ='Production Assumptions'!L50 -> 
A9: Cash | B9: =IF(Interface!H15="Equity",'Production Assumptions'!C49+'IS - RAS'!D36+'IS - RAS'!D16+'Working Capital - RAS'!C34,IF(Interface!H15="Debt/Equity",('Production Assumptions'!C49+'IS - RAS'!D36+'IS - RAS'!D16+'Working Capital - RAS'!C34-'Loan Int & Bal - RAS'!B5),'Production Assumptions'!C49+'IS - RAS'!D36+'IS - RAS'!D16+'Working Capital - RAS'!C34-'Loan Int & Bal - RAS'!B5)) ->  | C9: =IF(Interface!$H$15="Equity",'Production Assumptions'!D49+'IS - RAS'!E36+'IS - RAS'!E16+B9, IF(Interface!H15="Debt/Equity",('Production Assumptions'!D49+'IS - RAS'!E36+'IS - RAS'!E16-'Loan Int & Bal - RAS'!C5+B9),'Production Assumptions'!D49+'IS - RAS'!E36+'IS - RAS'!E16+B9-'Loan Int & Bal - RAS'!C5)) ->  | D9: =IF(Interface!$H$15="Equity",'Production Assumptions'!E49+'IS - RAS'!F36+'IS - RAS'!F16+C9, IF(Interface!I15="Debt/Equity",('Production Assumptions'!E49+'IS - RAS'!F36+'IS - RAS'!F16-'Loan Int & Bal - RAS'!D5+C9),'Production Assumptions'!E49+'IS - RAS'!F36+'IS - RAS'!F16+C9-'Loan Int & Bal - RAS'!D5)) ->  | E9: =IF(Interface!$H$15="Equity",'Production Assumptions'!F49+'IS - RAS'!G36+'IS - RAS'!G16+D9, IF(Interface!J15="Debt/Equity",('Production Assumptions'!F49+'IS - RAS'!G36+'IS - RAS'!G16-'Loan Int & Bal - RAS'!E5+D9),'Production Assumptions'!F49+'IS - RAS'!G36+'IS - RAS'!G16+D9-'Loan Int & Bal - RAS'!E5)) ->  | F9: =IF(Interface!$H$15="Equity",'Production Assumptions'!G49+'IS - RAS'!H36+'IS - RAS'!H16+E9, IF(Interface!K15="Debt/Equity",('Production Assumptions'!G49+'IS - RAS'!H36+'IS - RAS'!H16-'Loan Int & Bal - RAS'!F5+E9),'Production Assumptions'!G49+'IS - RAS'!H36+'IS - RAS'!H16+E9-'Loan Int & Bal - RAS'!F5)) ->  | G9: =IF(Interface!$H$15="Equity",'Production Assumptions'!H49+'IS - RAS'!I36+'IS - RAS'!I16+F9, IF(Interface!L15="Debt/Equity",('Production Assumptions'!H49+'IS - RAS'!I36+'IS - RAS'!I16-'Loan Int & Bal - RAS'!G5+F9),'Production Assumptions'!H49+'IS - RAS'!I36+'IS - RAS'!I16+F9-'Loan Int & Bal - RAS'!G5)) ->  | H9: =IF(Interface!$H$15="Equity",'Production Assumptions'!I49+'IS - RAS'!J36+'IS - RAS'!J16+G9, IF(Interface!M15="Debt/Equity",('Production Assumptions'!I49+'IS - RAS'!J36+'IS - RAS'!J16-'Loan Int & Bal - RAS'!H5+G9),'Production Assumptions'!I49+'IS - RAS'!J36+'IS - RAS'!J16+G9-'Loan Int & Bal - RAS'!H5)) ->  | I9: =IF(Interface!$H$15="Equity",'Production Assumptions'!J49+'IS - RAS'!K36+'IS - RAS'!K16+H9, IF(Interface!N15="Debt/Equity",('Production Assumptions'!J49+'IS - RAS'!K36+'IS - RAS'!K16-'Loan Int & Bal - RAS'!I5+H9),'Production Assumptions'!J49+'IS - RAS'!K36+'IS - RAS'!K16+H9-'Loan Int & Bal - RAS'!I5)) ->  | J9: =IF(Interface!$H$15="Equity",'Production Assumptions'!K49+'IS - RAS'!L36+'IS - RAS'!L16+I9, IF(Interface!O15="Debt/Equity",('Production Assumptions'!K49+'IS - RAS'!L36+'IS - RAS'!L16-'Loan Int & Bal - RAS'!J5+I9),'Production Assumptions'!K49+'IS - RAS'!L36+'IS - RAS'!L16+I9-'Loan Int & Bal - RAS'!J5)) ->  | K9: =IF(Interface!$H$15="Equity",'Production Assumptions'!L49+'IS - RAS'!M36+'IS - RAS'!M16+J9, IF(Interface!P15="Debt/Equity",('Production Assumptions'!L49+'IS - RAS'!M36+'IS - RAS'!M16-'Loan Int & Bal - RAS'!K5+J9),'Production Assumptions'!L49+'IS - RAS'!M36+'IS - RAS'!M16+J9-'Loan Int & Bal - RAS'!K5)) -> 
B10: =SUM(B5:B9) ->  | C10: =SUM(C5:C9) ->  | D10: =SUM(D5:D9) -> 
A11: Equity & Liabilities
A12: Retained Earnings | B12: ='IS - RAS'!D45 ->  | C12: ='IS - RAS'!E45+B12 ->  | D12: ='IS - RAS'!F45+C12 ->  | E12: ='IS - RAS'!G45+D12 ->  | F12: ='IS - RAS'!H45+E12 ->  | G12: ='IS - RAS'!I45+F12 ->  | H12: ='IS - RAS'!J45+G12 ->  | I12: ='IS - RAS'!K45+H12 ->  | J12: ='IS - RAS'!L45+I12 ->  | K12: ='IS - RAS'!M45+J12 -> 
A13: Deferred Income | B13: =IF(Interface!$H$15="EQUITY",'CAPEX '!$J$31+'Working Capital - RAS'!$C$34,IF(Interface!$H$15="DEBT/EQUITY",('CAPEX '!$J$31+'Working Capital - RAS'!$C$34)*(100%-Interface!$I$15),0)) -> 0 | C13: =IF(Interface!$H$15="EQUITY",'CAPEX '!$J$31+'Working Capital - RAS'!$C$34,IF(Interface!$H$15="DEBT/EQUITY",('CAPEX '!$J$31+'Working Capital - RAS'!$C$34)*(100%-Interface!$I$15),0)) -> 0 | D13: =IF(Interface!$H$15="EQUITY",'CAPEX '!$J$31+'Working Capital - RAS'!$C$34,IF(Interface!$H$15="DEBT/EQUITY",('CAPEX '!$J$31+'Working Capital - RAS'!$C$34)*(100%-Interface!$I$15),0)) -> 0 | E13: =IF(Interface!$H$15="EQUITY",'CAPEX '!$J$31+'Working Capital - RAS'!$C$34,IF(Interface!$H$15="DEBT/EQUITY",('CAPEX '!$J$31+'Working Capital - RAS'!$C$34)*(100%-Interface!$I$15),0)) -> 0 | F13: =IF(Interface!$H$15="EQUITY",'CAPEX '!$J$31+'Working Capital - RAS'!$C$34,IF(Interface!$H$15="DEBT/EQUITY",('CAPEX '!$J$31+'Working Capital - RAS'!$C$34)*(100%-Interface!$I$15),0)) -> 0 | G13: =IF(Interface!$H$15="EQUITY",'CAPEX '!$J$31+'Working Capital - RAS'!$C$34,IF(Interface!$H$15="DEBT/EQUITY",('CAPEX '!$J$31+'Working Capital - RAS'!$C$34)*(100%-Interface!$I$15),0)) -> 0 | H13: =IF(Interface!$H$15="EQUITY",'CAPEX '!$J$31+'Working Capital - RAS'!$C$34,IF(Interface!$H$15="DEBT/EQUITY",('CAPEX '!$J$31+'Working Capital - RAS'!$C$34)*(100%-Interface!$I$15),0)) -> 0 | I13: =IF(Interface!$H$15="EQUITY",'CAPEX '!$J$31+'Working Capital - RAS'!$C$34,IF(Interface!$H$15="DEBT/EQUITY",('CAPEX '!$J$31+'Working Capital - RAS'!$C$34)*(100%-Interface!$I$15),0)) -> 0 | J13: =IF(Interface!$H$15="EQUITY",'CAPEX '!$J$31+'Working Capital - RAS'!$C$34,IF(Interface!$H$15="DEBT/EQUITY",('CAPEX '!$J$31+'Working Capital - RAS'!$C$34)*(100%-Interface!$I$15),0)) -> 0 | K13: =IF(Interface!$H$15="EQUITY",'CAPEX '!$J$31+'Working Capital - RAS'!$C$34,IF(Interface!$H$15="DEBT/EQUITY",('CAPEX '!$J$31+'Working Capital - RAS'!$C$34)*(100%-Interface!$I$15),0)) -> 0
A14: Long Term Liability | B14: =IF(Interface!$H$15="DEBT",'Loan Int & Bal - RAS'!B4,IF(Interface!$H$15="DEBT/EQUITY",'Loan Int & Bal - RAS'!B4,0)) -> 0 | C14: =IF(Interface!$H$15="DEBT",'Loan Int & Bal - RAS'!C4,IF(Interface!$H$15="DEBT/EQUITY",'Loan Int & Bal - RAS'!C4,0)) -> 0 | D14: =IF(Interface!$H$15="DEBT",'Loan Int & Bal - RAS'!D4,IF(Interface!$H$15="DEBT/EQUITY",'Loan Int & Bal - RAS'!D4,0)) -> 0 | E14: =IF(Interface!$H$15="DEBT",'Loan Int & Bal - RAS'!E4,IF(Interface!$H$15="DEBT/EQUITY",'Loan Int & Bal - RAS'!E4,0)) -> 0 | F14: =IF(Interface!$H$15="DEBT",'Loan Int & Bal - RAS'!F4,IF(Interface!$H$15="DEBT/EQUITY",'Loan Int & Bal - RAS'!F4,0)) -> 0 | G14: =IF(Interface!$H$15="DEBT",'Loan Int & Bal - RAS'!G4,IF(Interface!$H$15="DEBT/EQUITY",'Loan Int & Bal - RAS'!G4,0)) -> 0 | H14: =IF(Interface!$H$15="DEBT",'Loan Int & Bal - RAS'!H4,IF(Interface!$H$15="DEBT/EQUITY",'Loan Int & Bal - RAS'!H4,0)) -> 0 | I14: =IF(Interface!$H$15="DEBT",'Loan Int & Bal - RAS'!I4,IF(Interface!$H$15="DEBT/EQUITY",'Loan Int & Bal - RAS'!I4,0)) -> 0 | J14: =IF(Interface!$H$15="DEBT",'Loan Int & Bal - RAS'!J4,IF(Interface!$H$15="DEBT/EQUITY",'Loan Int & Bal - RAS'!J4,0)) -> 0 | K14: =IF(Interface!$H$15="DEBT",'Loan Int & Bal - RAS'!K4,IF(Interface!$H$15="DEBT/EQUITY",'Loan Int & Bal - RAS'!K4,0)) -> 0
A15: Provision for Taxation | B15: =-'IS - RAS'!D43 ->  | C15: =-'IS - RAS'!E43+B15 ->  | D15: =-'IS - RAS'!F43+C15 ->  | E15: =-'IS - RAS'!G43+D15 ->  | F15: =-'IS - RAS'!H43+E15 ->  | G15: =-'IS - RAS'!I43+F15 ->  | H15: =-'IS - RAS'!J43+G15 ->  | I15: =-'IS - RAS'!K43+H15 ->  | J15: =-'IS - RAS'!L43+I15 ->  | K15: =-'IS - RAS'!M43+J15 -> 
B16: =SUM(B12:B15) -> 
B17: =B10-B16 -> 
B18: =IF(ABS(B17)<0.00001,"OK","ERROR") ->  | C18: =IF(ABS(C17)<0.00001,"OK","ERROR") ->  | E18: =IF(ABS(E17)<0.00001,"OK","ERROR") -> 

Sheet CF - RAS
A1: Projected Cash Flow Statement | C1: Year
C2: Year 1 | D2: Year 2 | E2: Year 3 | F2: Year 4 | G2: Year 5 | H2: Year 6 | I2: Year 7 | J2: Year 8 | K2: Year 9 | L2: Year 10 | M2: NO POSITIVE
A3: Cash flows from operating activities
A4: Profit / (Loss) for the year | C4: ='IS - RAS'!D45 ->  | D4: ='IS - RAS'!E45 ->  | E4: ='IS - RAS'!F45 ->  | F4: ='IS - RAS'!G45 ->  | G4: ='IS - RAS'!H45 ->  | H4: ='IS - RAS'!I45 ->  | I4: ='IS - RAS'!J45 ->  | J4: ='IS - RAS'!K45 ->  | K4: ='IS - RAS'!L45 ->  | L4: ='IS - RAS'!M45 -> 
A5: Taxation | C5: =-'IS - RAS'!D43 ->  | D5: =-'IS - RAS'!E43 ->  | E5: =-'IS - RAS'!F43 ->  | F5: =-'IS - RAS'!G43 ->  | G5: =-'IS - RAS'!H43 ->  | H5: =-'IS - RAS'!I43 ->  | I5: =-'IS - RAS'!J43 ->  | J5: =-'IS - RAS'!K43 ->  | K5: =-'IS - RAS'!L43 ->  | L5: =-'IS - RAS'!M43 -> 
A6: Adjustment for non-cash expenses:
A7: Interest Charged | C7: =IF(Interface!$H$15="DEBT",'Loan Int & Bal - RAS'!B3,IF(Interface!$H$15="DEBT/EQUITY",'Loan Int & Bal - RAS'!B3,0)) -> 0 | D7: =IF(Interface!$H$15="DEBT",'Loan Int & Bal - RAS'!C3,IF(Interface!$H$15="DEBT/EQUITY",'Loan Int & Bal - RAS'!C3,0)) -> 0 | E7: =IF(Interface!$H$15="DEBT",'Loan Int & Bal - RAS'!D3,IF(Interface!$H$15="DEBT/EQUITY",'Loan Int & Bal - RAS'!D3,0)) -> 0 | F7: =IF(Interface!$H$15="DEBT",'Loan Int & Bal - RAS'!E3,IF(Interface!$H$15="DEBT/EQUITY",'Loan Int & Bal - RAS'!E3,0)) -> 0 | G7: =IF(Interface!$H$15="DEBT",'Loan Int & Bal - RAS'!F3,IF(Interface!$H$15="DEBT/EQUITY",'Loan Int & Bal - RAS'!F3,0)) -> 0 | H7: =IF(Interface!$H$15="DEBT",'Loan Int & Bal - RAS'!G3,IF(Interface!$H$15="DEBT/EQUITY",'Loan Int & Bal - RAS'!G3,0)) -> 0 | I7: =IF(Interface!$H$15="DEBT",'Loan Int & Bal - RAS'!H3,IF(Interface!$H$15="DEBT/EQUITY",'Loan Int & Bal - RAS'!H3,0)) -> 0 | J7: =IF(Interface!$H$15="DEBT",'Loan Int & Bal - RAS'!I3,IF(Interface!$H$15="DEBT/EQUITY",'Loan Int & Bal - RAS'!I3,0)) -> 0 | K7: =IF(Interface!$H$15="DEBT",'Loan Int & Bal - RAS'!J3,IF(Interface!$H$15="DEBT/EQUITY",'Loan Int & Bal - RAS'!J3,0)) -> 0 | L7: =IF(Interface!$H$15="DEBT",'Loan Int & Bal - RAS'!K3,IF(Interface!$H$15="DEBT/EQUITY",'Loan Int & Bal - RAS'!K3,0)) -> 0
A8: Depreciation | C8: =-'IS - RAS'!D38 ->  | D8: =-'IS - RAS'!E38 ->  | E8: =-'IS - RAS'!F38 ->  | F8: =-'IS - RAS'!G38 ->  | G8: =-'IS - RAS'!H38 ->  | H8: =-'IS - RAS'!I38 ->  | I8: =-'IS - RAS'!J38 ->  | J8: =-'IS - RAS'!K38 ->  | K8: =-'IS - RAS'!L38 ->  | L8: =-'IS - RAS'!M38 -> 
A9: Changes in operating assets & liabilities
A10: Inventory | C10: 0 | D10: 0 | E10: 0 | F10: 0 | G10: 0 | H10: 0 | I10: 0 | J10: 0 | K10: 0 | L10: 0
A11: Receivables (INCREASE)/DECREASE | C11: =-'BS - RAS'!B8 ->  | D11: ='Production Assumptions'!C50-'Production Assumptions'!D50 ->  | E11: ='Production Assumptions'!D50-'Production Assumptions'!E50 ->  | F11: ='Production Assumptions'!E50-'Production Assumptions'!F50 ->  | G11: ='Production Assumptions'!F50-'Production Assumptions'!G50 ->  | H11: ='Production Assumptions'!G50-'Production Assumptions'!H50 ->  | I11: ='Production Assumptions'!H50-'Production Assumptions'!I50 ->  | J11: ='Production Assumptions'!I50-'Production Assumptions'!J50 ->  | K11: ='Production Assumptions'!J50-'Production Assumptions'!K50 ->  | L11: ='Production Assumptions'!K50-'Production Assumptions'!L50 -> 
A12: Payables | C12: 0 | D12: 0 | E12: 0 | F12: 0 | G12: 0 | H12: 0 | I12: 0 | J12: 0 | K12: 0 | L12: 0
A13: Cash generated from operations | C13: =SUM(C3:C12) ->  | D13: =SUM(D3:D12) -> 
A14: Interest paid | C14: =IF(Interface!$H$15="DEBT",-'Loan Int & Bal - RAS'!B3,IF(Interface!$H$15="DEBT/EQUITY",-'Loan Int & Bal - RAS'!B3,0)) -> 0 | D14: =IF(Interface!$H$15="DEBT",-'Loan Int & Bal - RAS'!C3,IF(Interface!$H$15="DEBT/EQUITY",-'Loan Int & Bal - RAS'!C3,0)) -> 0 | E14: =IF(Interface!$H$15="DEBT",-'Loan Int & Bal - RAS'!D3,IF(Interface!$H$15="DEBT/EQUITY",-'Loan Int & Bal - RAS'!D3,0)) -> 0 | F14: =IF(Interface!$H$15="DEBT",-'Loan Int & Bal - RAS'!E3,IF(Interface!$H$15="DEBT/EQUITY",-'Loan Int & Bal - RAS'!E3,0)) -> 0 | G14: =IF(Interface!$H$15="DEBT",-'Loan Int & Bal - RAS'!F3,IF(Interface!$H$15="DEBT/EQUITY",-'Loan Int & Bal - RAS'!F3,0)) -> 0 | H14: =IF(Interface!$H$15="DEBT",-'Loan Int & Bal - RAS'!G3,IF(Interface!$H$15="DEBT/EQUITY",-'Loan Int & Bal - RAS'!G3,0)) -> 0 | I14: =IF(Interface!$H$15="DEBT",-'Loan Int & Bal - RAS'!H3,IF(Interface!$H$15="DEBT/EQUITY",-'Loan Int & Bal - RAS'!H3,0)) -> 0 | J14: =IF(Interface!$H$15="DEBT",-'Loan Int & Bal - RAS'!I3,IF(Interface!$H$15="DEBT/EQUITY",-'Loan Int & Bal - RAS'!I3,0)) -> 0 | K14: =IF(Interface!$H$15="DEBT",-'Loan Int & Bal - RAS'!J3,IF(Interface!$H$15="DEBT/EQUITY",-'Loan Int & Bal - RAS'!J3,0)) -> 0 | L14: =IF(Interface!$H$15="DEBT",-'Loan Int & Bal - RAS'!K3,IF(Interface!$H$15="DEBT/EQUITY",-'Loan Int & Bal - RAS'!K3,0)) -> 0
A15: Taxation paid | C15: 0 | D15: 0 | E15: 0 | F15: 0 | G15: 0 | H15: 0 | I15: 0 | J15: 0 | K15: 0 | L15: 0
A16: Net cash from operating activities | C16: =SUM(C13:C15) ->  | D16: =SUM(D13:D15) -> 
A18: Cash flows from investing activities
A19: Purchases of property, plant & equipment | C19: =-'CAPEX '!J31 ->  | D19: 0 | E19: 0 | F19: 0 | G19: 0 | H19: 0 | I19: 0 | J19: 0 | K19: 0 | L19: 0
A20: Net cash used in investing activities | C20: =C19 ->  | D20: =D19 -> 0 | E20: 0 | F20: 0 | G20: 0 | H20: 0 | I20: 0 | J20: 0 | K20: 0 | L20: 0
A22: Cash flows from financing activities
A23: Proceeds from shareholders' contributions | C23: 0 | D23: 0 | E23: 0 | F23: 0 | G23: 0 | H23: 0 | I23: 0 | J23: 0 | K23: 0 | L23: 0
A24: Proceeds from equity | C24: =IF(Interface!$H$15="EQUITY",'CAPEX '!$J$31+'Working Capital - RAS'!$C$34,IF(Interface!$H$15="Debt/Equity",('CAPEX '!$J$31+'Working Capital - RAS'!$C$34)*(100%-Interface!$I$15),0)) -> 0 | D24: 0 | E24: 0 | F24: 0 | G24: 0 | H24: 0 | I24: 0 | J24: 0 | K24: 0 | L24: 0
A25: Proceeds from Loans | C25: =IF(Interface!H15="DEBT",(+'CAPEX '!J31+'Working Capital - RAS'!C34),IF(Interface!H15="DEBT/EQUITY",(+'CAPEX '!J31+'Working Capital - RAS'!C34)*Interface!$I$15,0)) -> 0 | D25: =IF(Interface!I15="DEBT",(+'CAPEX '!K33+'Working Capital - RAS'!D34*Interface!$I$15),IF(Interface!I15="DEBT/EQUITY",+'CAPEX '!K33+'Working Capital - RAS'!D34*Interface!$I$15,0)) -> 0 | E25: =IF(Interface!J15="DEBT",(+'CAPEX '!L20+'Working Capital - RAS'!E34*Interface!$I$15),IF(Interface!J15="DEBT/EQUITY",+'CAPEX '!L20+'Working Capital - RAS'!E34*Interface!$I$15,0)) -> 0 | F25: =IF(Interface!K15="DEBT",(+'CAPEX '!M20+'Working Capital - RAS'!F34*Interface!$I$15),IF(Interface!K15="DEBT/EQUITY",+'CAPEX '!M20+'Working Capital - RAS'!F34*Interface!$I$15,0)) -> 0 | G25: =IF(Interface!L15="DEBT",(+'CAPEX '!N20+'Working Capital - RAS'!G34*Interface!$I$15),IF(Interface!L15="DEBT/EQUITY",+'CAPEX '!N20+'Working Capital - RAS'!G34*Interface!$I$15,0)) -> 0 | H25: =IF(Interface!M15="DEBT",(+'CAPEX '!O33+'Working Capital - RAS'!H34*Interface!$I$15),IF(Interface!M15="DEBT/EQUITY",+'CAPEX '!O33+'Working Capital - RAS'!H34*Interface!$I$15,0)) -> 0 | I25: =IF(Interface!N15="DEBT",(+'CAPEX '!P33+'Working Capital - RAS'!#REF!*Interface!$I$15),IF(Interface!N15="DEBT/EQUITY",+'CAPEX '!P33+'Working Capital - RAS'!#REF!*Interface!$I$15,0)) -> 0 | J25: =IF(Interface!O15="DEBT",(+'CAPEX '!Q33+'Working Capital - RAS'!#REF!*Interface!$I$15),IF(Interface!O15="DEBT/EQUITY",+'CAPEX '!Q33+'Working Capital - RAS'!#REF!*Interface!$I$15,0)) -> 0 | K25: =IF(Interface!P15="DEBT",(+'CAPEX '!R33+'Working Capital - RAS'!#REF!*Interface!$I$15),IF(Interface!P15="DEBT/EQUITY",+'CAPEX '!R33+'Working Capital - RAS'!#REF!*Interface!$I$15,0)) -> 0 | L25: =IF(Interface!Q15="DEBT",(+'CAPEX '!S33+'Working Capital - RAS'!#REF!*Interface!$I$15),IF(Interface!Q15="DEBT/EQUITY",+'CAPEX '!S33+'Working Capital - RAS'!#REF!*Interface!$I$15,0)) -> 0
A26: Repayment of Loans | C26: =IF(Interface!$H$15="DEBT",-'Loan Int & Bal - RAS'!B5+'Loan Int & Bal - RAS'!B3,IF(Interface!$H$15="DEBT/EQUITY",-'Loan Int & Bal - RAS'!B5+'Loan Int & Bal - RAS'!B3,0)) -> 0 | D26: =IF(Interface!$H$15="DEBT",-'Loan Int & Bal - RAS'!C5+'Loan Int & Bal - RAS'!C3,IF(Interface!$H$15="DEBT/EQUITY",-'Loan Int & Bal - RAS'!C5+'Loan Int & Bal - RAS'!C3,0)) -> 0 | E26: =IF(Interface!$H$15="DEBT",-'Loan Int & Bal - RAS'!D5+'Loan Int & Bal - RAS'!D3,IF(Interface!$H$15="DEBT/EQUITY",-'Loan Int & Bal - RAS'!D5+'Loan Int & Bal - RAS'!D3,0)) -> 0 | F26: =IF(Interface!$H$15="DEBT",-'Loan Int & Bal - RAS'!E5+'Loan Int & Bal - RAS'!E3,IF(Interface!$H$15="DEBT/EQUITY",-'Loan Int & Bal - RAS'!E5+'Loan Int & Bal - RAS'!E3,0)) -> 0 | G26: =IF(Interface!$H$15="DEBT",-'Loan Int & Bal - RAS'!F5+'Loan Int & Bal - RAS'!F3,IF(Interface!$H$15="DEBT/EQUITY",-'Loan Int & Bal - RAS'!F5+'Loan Int & Bal - RAS'!F3,0)) -> 0 | H26: =IF(Interface!$H$15="DEBT",-'Loan Int & Bal - RAS'!G5+'Loan Int & Bal - RAS'!G3,IF(Interface!$H$15="DEBT/EQUITY",-'Loan Int & Bal - RAS'!G5+'Loan Int & Bal - RAS'!G3,0)) -> 0 | I26: =IF(Interface!$H$15="DEBT",-'Loan Int & Bal - RAS'!H5+'Loan Int & Bal - RAS'!H3,IF(Interface!$H$15="DEBT/EQUITY",-'Loan Int & Bal - RAS'!H5+'Loan Int & Bal - RAS'!H3,0)) -> 0 | J26: =IF(Interface!$H$15="DEBT",-'Loan Int & Bal - RAS'!I5+'Loan Int & Bal - RAS'!I3,IF(Interface!$H$15="DEBT/EQUITY",-'Loan Int & Bal - RAS'!I5+'Loan Int & Bal - RAS'!I3,0)) -> 0 | K26: =IF(Interface!$H$15="DEBT",-'Loan Int & Bal - RAS'!J5+'Loan Int & Bal - RAS'!J3,IF(Interface!$H$15="DEBT/EQUITY",-'Loan Int & Bal - RAS'!J5+'Loan Int & Bal - RAS'!J3,0)) -> 0 | L26: =IF(Interface!$H$15="DEBT",-'Loan Int & Bal - RAS'!K5+'Loan Int & Bal - RAS'!K3,IF(Interface!$H$15="DEBT/EQUITY",-'Loan Int & Bal - RAS'!K5+'Loan Int & Bal - RAS'!K3,0)) -> 0
A27: Net cash from financing activities | C27: =SUM(C23:C26) -> 0 | D27: =SUM(D23:D26) -> 0 | E27: 0 | F27: 0 | G27: 0 | H27: 0 | I27: 0 | J27: 0 | K27: 0 | L27: 0
A29: Increase / (Decrease) in cash equivalents | C29: =C27+C20+C16 ->  | D29: =D27+D20+D16 -> 
A31: Cash & cash equivalents at beginning of year | C31: 0 | D31: =C33 ->  | E31: =D33 -> 
A33: Cash & cash equivalents at end of year | B33: -1 | C33: =SUM(C29:C32) ->  | M33: 1
A34: DIFF | C34: =C33-'BS - RAS'!B9 ->  | D34: =D33-'BS - RAS'!C9 ->  | E34: =E33-'BS - RAS'!D9 ->  | F34: =F33-'BS - RAS'!E9 ->  | G34: =G33-'BS - RAS'!F9 ->  | H34: =H33-'BS - RAS'!G9 ->  | I34: =I33-'BS - RAS'!H9 ->  | J34: =J33-'BS - RAS'!I9 ->  | K34: =K33-'BS - RAS'!J9 ->  | L34: =L33-'BS - RAS'!K9 -> 
C35: =IF(ABS(C34)<0.00001,"OK","ERROR") ->  | D35: =IF(ABS(D34)<0.00001,"OK","ERROR") -> 

Sheet IRR - RAS
C3: IRR CALCULATION
C4: Period | D4: Nett cash Flow for period
C5: Initial Investment | D5: =-('BS - RAS'!B13+'Loan - RAS'!B9) -> 0
C6: 1 | D6: ='CF - RAS'!C33 -> 
C7: 2 | D7: ='CF - RAS'!D33 -> 
C8: 3 | D8: ='CF - RAS'!E33 -> 
C9: 4 | D9: ='CF - RAS'!F33 -> 
C10: 5 | D10: ='CF - RAS'!G33 -> 
C11: 6 | D11: ='CF - RAS'!H33 -> 
C12: 7 | D12: ='CF - RAS'!I33 -> 
C13: 8 | D13: ='CF - RAS'!J33 -> 
C14: 9 | D14: ='CF - RAS'!K33 -> 
C15: 10 | D15: ='CF - RAS'!L33 -> 
C17: TOTAL NETT INFLOW | D17: =SUM(D5:D15) -> 
C19: IRR | D19: =IF(D17>0, IRR(D5:D15), 0) -> 

Sheet NPV & PI - RAS
D2: 2016 REPO Rate | E2: 0.07
C3: NPV & PI Index
C4: Period | D4: Nett cash Flow for period | E4: Discounted Cash Flow
C5: Initial Investment | D5: ='IRR - RAS'!D5 -> 0
C6: 1 | D6: ='IRR - RAS'!D6 ->  | E6: =D6/((1+$E$2)^C6) -> 
C7: 2 | D7: ='IRR - RAS'!D7 ->  | E7: =D7/((1+$E$2)^C7) -> 
C8: 3 | D8: ='IRR - RAS'!D8 -> 
C9: 4 | D9: ='IRR - RAS'!D9 -> 
C10: 5 | D10: ='IRR - RAS'!D10 -> 
C11: 6 | D11: ='IRR - RAS'!D11 -> 
C12: 7 | D12: ='IRR - RAS'!D12 -> 
C13: 8 | D13: ='IRR - RAS'!D13 -> 
C14: 9 | D14: ='IRR - RAS'!D14 -> 
C15: 10 | D15: ='IRR - RAS'!D15 -> 
C17: NETT PRESENT VALUE | D17: =SUM(E6:E15) -> 
C19: Profitability Index | D19: =NPV(E2,D6,D7,D8,D9,D10,D11,D12,D13,D14,D15)/-D5 -> 

Sheet DEP - RAS
B3: Item | C3: Useful Lifetime in Years | D3: Rate | E3: Price | F3: Year
F4: 1 | G4: =F4+1 -> 2 | H4: =G4+1 -> 3 | I4: 4 | J4: 5 | K4: 6 | L4: 7 | M4: 8 | N4: 9 | O4: 10
B5: Infrastructure
B6: ='CAPEX '!B6 -> Hatchery Room | C6: 50 | D6: =100%/C6 -> 0.02 | E6: ='CAPEX '!J6 -> 86400 | F6: =E6*D6 -> 1728 | G6: =IF(G$4<=$C6,F6,0) -> 1728 | H6: =IF(H$4<=$C6,G6,0) -> 1728 | I6: 1728 | J6: 1728 | K6: 1728 | L6: 1728 | M6: 1728 | N6: 1728 | O6: 1728
B7: ='CAPEX '!B7 -> Tunnels (number) (m) | C7: 10 | D7: =100%/C7 -> 0.1 | E7: ='CAPEX '!J7 ->  | F7: =E7*D7 ->  | G7: =IF(G$4<=$C7,F7,0) -> 
B8: ='CAPEX '!B8 -> Office/Storage/Feed store | C8: 50 | D8: 0.02 | E8: ='CAPEX '!J8 -> 180000 | F8: =E8*D8 -> 3600 | G8: 3600 | H8: 3600 | I8: 3600 | J8: 3600 | K8: 3600 | L8: 3600 | M8: 3600 | N8: 3600 | O8: 3600
B9: ='CAPEX '!B9 -> Packing Room (Complete with tanks,piping etc) | C9: 25 | D9: 0.04 | E9: ='CAPEX '!J9 -> 25250 | F9: 1010 | G9: 1010 | H9: 1010 | I9: 1010 | J9: 1010 | K9: 1010 | L9: 1010 | M9: 1010 | N9: 1010 | O9: 1010
B10: Equipment
B11: ='CAPEX '!B13 -> Grow-out containment number (m3) | C11: 10 | D11: =100%/C11 -> 0.1 | E11: ='CAPEX '!J13 ->  | F11: =E11*D11 ->  | G11: =IF(G$4<=$C11,F11,0) ->  | H11: =IF(H$4<=$C11,G11,0) -> 
B12: ='CAPEX '!B14 -> Hatchery: Breeding Tanks (1 brood pair/tank) | C12: 10 | D12: =100%/C12 -> 0.1 | E12: ='CAPEX '!J14 -> 12500 | F12: =E12*D12 -> 1250 | G12: =IF(G$4<=$C12,F12,0) -> 1250 | H12: =IF(H$4<=$C12,G12,0) -> 1250 | I12: =IF(I$4<=$C12,H12,0) -> 1250 | J12: =IF(J$4<=$C12,I12,0) -> 1250 | K12: =IF(K$4<=$C12,J12,0) -> 1250 | L12: =IF(L$4<=$C12,K12,0) -> 1250 | M12: =IF(M$4<=$C12,L12,0) -> 1250 | N12: =IF(N$4<=$C12,M12,0) -> 1250 | O12: =IF(O$4<=$C12,N12,0) -> 1250
B13: ='CAPEX '!B15 -> Hatchery Tank Stands | C13: 10 | D13: =100%/C13 -> 0.1 | E13: ='CAPEX '!J15 -> 20400 | F13: 2040 | G13: 2040 | H13: 2040 | I13: 2040 | J13: 2040 | K13: 2040 | L13: 2040 | M13: 2040 | N13: 2040 | O13: 2040
B14: ='CAPEX '!B16 -> Hatchery piping & Fittings | C14: 4 | D14: =100%/C14 -> 0.25 | E14: ='CAPEX '!J16 -> 10000 | F14: 2500 | G14: 2500 | H14: 2500 | I14: 2500 | J14: 0 | K14: 0 | L14: 0 | M14: 0 | N14: 0 | O14: 0
B15: ='CAPEX '!B17 -> Hatchery Heating/cooling | C15: 6 | D15: =100%/C15 -> 0.1666666667 | E15: ='CAPEX '!J17 -> 15000 | F15: 2500 | G15: 2500 | H15: 2500 | I15: 2500 | J15: 2500 | K15: 2500 | L15: 0 | M15: 0 | N15: 0 | O15: 0
B16: ='CAPEX '!B18 -> Water quality testing equipment | C16: 7 | D16: =100%/C16 -> 0.1428571429 | E16: ='CAPEX '!J18 -> 16500 | F16: =E16*D16 -> 2357.142857 | G16: =IF(G$4<=$C16,F16,0) -> 2357.142857 | H16: 2357.142857 | I16: 2357.142857 | J16: 2357.142857 | K16: 2357.142857 | L16: 2357.142857 | M16: 0 | N16: 0 | O16: 0
B17: ='CAPEX '!B19 -> Water Pumps | C17: 4 | D17: 0.25 | E17: ='CAPEX '!J19 ->  | F17: =E17*D17 ->  | G17: =IF(G$4<=$C17,F17,0) ->  | J17: 0 | K17: 0 | L17: 0 | M17: 0 | N17: 0 | O17: 0
B18: ='CAPEX '!B22 -> Biofilter Tank | C18: 10 | D18: 0.1 | E18: ='CAPEX '!J22 -> 18360 | F18: 1836 | G18: =IF(G$4<=$C18,F18,0) -> 1836 | H18: 1836 | I18: 1836 | J18: 1836 | K18: 1836 | L18: 1836 | M18: 1836 | N18: 1836 | O18: 1836
B19: ='CAPEX '!B23 -> Biofilter Media | C19: 5 | D19: 0.2 | E19: ='CAPEX '!J23 ->  | F19: =E19*D19 ->  | G19: =IF(G$4<=$C19,F19,0) ->  | H19: =IF(H$4<=$C19,G19,0) ->  | I19: =IF(I$4<=$C19,H19,0) ->  | J19: =IF(J$4<=$C19,I19,0) ->  | K19: =IF(K$4<=$C19,J19,0) -> 0 | L19: =IF(L$4<=$C19,K19,0) -> 0 | M19: =IF(M$4<=$C19,L19,0) -> 0 | N19: =IF(N$4<=$C19,M19,0) -> 0 | O19: =IF(O$4<=$C19,N19,0) -> 0
B20: Moveable assets
B21: ='CAPEX '!B25 -> Buckets/drums | C21: 7 | D21: =100%/C21 -> 0.1428571429 | E21: ='CAPEX '!J25 -> 1092.8 | F21: =E21*D21 -> 156.1142857 | G21: =IF(G$4<=$C21,F21,0) -> 156.1142857 | H21: =IF(H$4<=$C21,G21,0) -> 156.1142857 | I21: 156.1142857 | J21: 156.1142857 | K21: 156.1142857 | L21: 156.1142857 | M21: 0 | N21: 0 | O21: 0
B22: ='CAPEX '!B26 -> Feeding Stations | C22: 3 | D22: =100%/C22 -> 0.3333333333 | E22: ='CAPEX '!J26 ->  | F22: =E22*D22 ->  | G22: =IF(G$4<=$C22,F22,0) ->  | H22: =IF(H$4<=$C22,G22,0) ->  | I22: =IF(I$4<=$C22,H22,0) -> 0 | J22: =IF(J$4<=$C22,I22,0) -> 0 | K22: =IF(K$4<=$C22,J22,0) -> 0 | L22: =IF(L$4<=$C22,K22,0) -> 0 | M22: =IF(M$4<=$C22,L22,0) -> 0 | N22: =IF(N$4<=$C22,M22,0) -> 0 | O22: =IF(O$4<=$C22,N22,0) -> 0
B23: ='CAPEX '!B27 -> Spawning Traps | C23: 3 | D23: 0.3333333333 | E23: ='CAPEX '!J27 -> 7500 | F23: 2500 | G23: 2500 | H23: 2500 | I23: 0 | J23: 0 | K23: 0 | L23: 0 | M23: 0 | N23: 0 | O23: 0
B24: ='CAPEX '!B28 -> Office equipment | C24: 3 | D24: =100%/C24 -> 0.3333333333 | E24: ='CAPEX '!J28 -> 6000 | F24: 2000 | G24: =IF(G$4<=$C24,F24,0) -> 2000 | H24: 2000 | I24: 0 | J24: 0 | K24: 0 | L24: 0 | M24: 0 | N24: 0 | O24: 0
B25: ='CAPEX '!B29 -> Short/long handle Hand net | C25: 4 | D25: 0.25 | E25: ='CAPEX '!J29 -> 864 | F25: 216 | G25: =IF(G$4<=$C25,F25,0) -> 216 | H25: 216 | I25: 216 | J25: 0 | K25: 0 | L25: 0 | M25: 0 | N25: 0 | O25: 0
B26: ='CAPEX '!B30 -> Vehicle | C26: 4 | D26: 0.25 | E26: ='CAPEX '!J30 -> 200000 | F26: 50000 | G26: =IF(G$4<=$C26,F26,0) -> 50000 | H26: 50000 | I26: 50000 | J26: 0 | K26: 0 | L26: 0 | M26: 0 | N26: 0 | O26: 0
B27: TOTAL | E27: =SUM(E6:E26) ->  | F27: =SUM(F6:F26) -> 

Sheet Loan - RAS (hidden)
A2: Year 1 loan
A3: Balance: | B3: =B9 -> 0
A4: Interest rate: | B4: =B10/12 -> 0
A5: Periods: | B5: 12
A6: Monthly Payment: | B6: =PMT(B4,B5,-B3) -> 0
A8: Loan Amortization schedule
A9: Loan Amount | B9: =IF(Interface!H15="DEBT",'CAPEX '!J31+'Working Capital - RAS'!C34, IF(Interface!H15="DEBT/EQUITY",('CAPEX '!J31+'Working Capital - RAS'!C34)*Interface!I15,0)) -> 0
A10: Interest rate | B10: =Interface!I26 -> 0
A11: Months | B11: =B12*12 -> 
A12: YEARS | B12: =Interface!J26 -> <Please select a payback period>
A13: Payments | B13: =ROUND(PMT($B$10/12,$B$11,-$B$9, 0),0) ->  | C13: =B13*12 -> 
A15: Payment Number | B15: Beginning Balance | C15: Payment | D15: Principal | E15: interest | F15: Cumulative Principal | G15: Cumulative Interest | H15: Ending Balance
A16: 1 | B16: =$B$9 -> 0 | C16: =$B$13 ->  | D16: =$C16-$E16 ->  | E16: =IF($B16*$B$4>0,$B16*$B$4,0) -> 0 | H16: =$B16-$D16 -> 
A17: 2 | B17: =H16 ->  | C17: =$B$13 ->  | D17: =$C17-$E17 ->  | H17: =$B17-$D17 -> 
A18: 3 | B18: =H17 -> 
A19: 4
A20: 5 | E20: =IF($B20*$B$4>0,$B20*$B$4,0) -> 
A21: 6 | E21: =IF($B21*$B$4>0,$B21*$B$4,0) -> 
A22: 7
A23: 8
A24: 9
A25: 10
A26: 11
A27: 12
A28: 13
A29: 14
A30: 15
A31: 16
A32: 17
A33: 18
A34: 19
A35: 20
A36: 21
A37: 22
A38: 23
A39: 24
A40: 25
A41: 26
A42: 27
A43: 28
A44: 29
A45: 30
A46: 31
A47: 32
A48: 33
A49: 34
A50: 35
A51: 36
A52: 37
A53: 38
A54: 39
A55: 40
A56: 41
A57: 42
A58: 43
A59: 44
A60: 45
A61: 46
A62: 47
A63: 48
A64: 49
A65: 50
A66: 51
A67: 52
A68: 53
A69: 54
A70: 55
A71: 56
A72: 57
A73: 58
A74: 59
A75: 60
A76: 61
A77: 62
A78: 63
A79: 64
A80: 65
A81: 66 | C81: =$B$13 ->  | D81: =$C81-$E81 ->  | H81: =$B81-$D81 -> 
A82: 67 | B82: =H81 -> 
A83: 68
A84: 69
A85: 70 | E85: =IF($B85*$B$4>0,$B85*$B$4,0) -> 
A86: 71
A87: 72
A88: 73
A89: 74
A90: 75
A91: 76
A92: 77
A93: 78
A94: 79
A95: 80
A96: 81
A97: 82
A98: 83
A99: 84
A100: 85
A101: 86
A102: 87
A103: 88
A104: 89
A105: 90
A106: 91
A107: 92
A108: 93
A109: 94
A110: 95
A111: 96
A112: 97
A113: 98
A114: 99
A115: 100
A116: 101
A117: 102
A118: 103
A119: 104
A120: 105
A121: 106
A122: 107
A123: 108
A124: 109
A125: 110
A126: 111
A127: 112
A128: 113
A129: 114
A130: 115
A131: 116
A132: 117
A133: 118
A134: 119
A135: 120
A136: 121 | B136: =H135 -> 
A137: 122
A138: 123
A139: 124
A140: 125
A141: 126
A142: 127
A143: 128
A144: 129
A145: 130 | C145: =$B$13 ->  | D145: =$C145-$E145 ->  | H145: =$B145-$D145 -> 
A146: 131
A147: 132
A148: 133
A149: 134 | E149: =IF($B149*$B$4>0,$B149*$B$4,0) -> 
A150: 135
A151: 136
A152: 137
A153: 138
A154: 139
A155: 140
A156: 141
A157: 142
A158: 143
A159: 144
A160: 145
A161: 146
A162: 147
A163: 148
A164: 149
A165: 150
A166: 151
A167: 152
A168: 153
A169: 154
A170: 155
A171: 156
A172: 157
A173: 158
A174: 159
A175: 160
A176: 161
A177: 162
A178: 163
A179: 164
A180: 165
A181: 166
A182: 167
A183: 168
A184: 169
A185: 170
A186: 171
A187: 172
A188: 173
A189: 174
A190: 175
A191: 176
A192: 177
A193: 178
A194: 179
A195: 180
A196: 181 | H196: =IF($B196-$D196>0,$B196-$D196,0) -> 
A197: 182 | B197: =IF(H196>0,H196,0) ->  | H197: =IF($B197-$D197>0,$B197-$D197,0) -> 
A198: 183
A199: 184
A200: 185 | B200: =H199 -> 
A201: 186
A202: 187
A203: 188
... 52 more rows

Sheet Loan Int & Bal - RAS (hidden)
B2: Year 1 | C2: Year 2 | D2: Year 3 | E2: Year 4 | F2: Year 5 | G2: Year 6 | H2: Year 7 | I2: Year 8 | J2: Year 9 | K2: Year 10 | L2: Year 11 | M2: Year 12 | N2: Year 13 | O2: Year 14 | P2: Year 15 | Q2: Year 16 | R2: Year 17 | S2: Year 18 | T2: Year 19 | U2: Year 20
A3: Annual Interest | B3: =SUM('Loan - RAS'!E16:E27) ->  | C3: =SUM('Loan - RAS'!E28:E39) ->  | D3: =SUM('Loan - RAS'!E40:E51) ->  | E3: =SUM('Loan - RAS'!E52:E63) ->  | F3: =SUM('Loan - RAS'!E64:E75) ->  | G3: =SUM('Loan - RAS'!E76:E87) ->  | H3: =SUM('Loan - RAS'!E88:E99) ->  | I3: =SUM('Loan - RAS'!E100:E111) ->  | J3: =SUM('Loan - RAS'!E112:E123) ->  | K3: =SUM('Loan - RAS'!E124:E135) ->  | L3: =SUM('Loan - RAS'!E136:E147) ->  | M3: =SUM('Loan - RAS'!E148:E159) ->  | N3: =SUM('Loan - RAS'!E160:E171) ->  | O3: =SUM('Loan - RAS'!E172:E183) ->  | P3: =SUM('Loan - RAS'!E184:E195) ->  | Q3: =SUM('Loan - RAS'!E196:E207) ->  | R3: =SUM('Loan - RAS'!E208:E219) ->  | S3: =SUM('Loan - RAS'!E220:E231) ->  | T3: =SUM('Loan - RAS'!E232:E243) ->  | U3: =SUM('Loan - RAS'!E244:E255) -> 
A4: Annual Balance | B4: ='Loan - RAS'!H27 ->  | C4: ='Loan - RAS'!H39 ->  | D4: ='Loan - RAS'!H51 ->  | E4: ='Loan - RAS'!H63 ->  | F4: ='Loan - RAS'!H75 ->  | G4: ='Loan - RAS'!H87 ->  | H4: ='Loan - RAS'!H99 ->  | I4: ='Loan - RAS'!H111 ->  | J4: ='Loan - RAS'!H123 ->  | K4: ='Loan - RAS'!H135 ->  | L4: ='Loan - RAS'!H147 ->  | M4: ='Loan - RAS'!H159 ->  | N4: ='Loan - RAS'!H171 ->  | O4: ='Loan - RAS'!H183 ->  | P4: ='Loan - RAS'!H195 ->  | Q4: ='Loan - RAS'!H207 ->  | R4: ='Loan - RAS'!H219 ->  | S4: ='Loan - RAS'!H231 ->  | T4: ='Loan - RAS'!H243 ->  | U4: ='Loan - RAS'!H255 -> 
A5: Repayments | B5: ='Loan - RAS'!$B$13*12 ->  | C5: ='Loan - RAS'!$B$13*12 ->  | D5: ='Loan - RAS'!$B$13*12 ->  | E5: ='Loan - RAS'!$B$13*12 ->  | F5: ='Loan - RAS'!$B$13*12 ->  | G5: ='Loan - RAS'!$B$13*12 ->  | H5: ='Loan - RAS'!$B$13*12 ->  | I5: ='Loan - RAS'!$B$13*12 ->  | J5: ='Loan - RAS'!$B$13*12 ->  | K5: ='Loan - RAS'!$B$13*12 ->  | L5: ='Loan - RAS'!$B$13*12 ->  | M5: ='Loan - RAS'!$B$13*12 ->  | N5: ='Loan - RAS'!$B$13*12 ->  | O5: ='Loan - RAS'!$B$13*12 ->  | P5: ='Loan - RAS'!$B$13*12 ->  | Q5: ='Loan - RAS'!$B$13*12 ->  | R5: ='Loan - RAS'!$B$13*12 ->  | S5: ='Loan - RAS'!$B$13*12 ->  | T5: ='Loan - RAS'!$B$13*12 ->  | U5: ='Loan - RAS'!$B$13*12 -> 

Sheet RISK (hidden)
B2: RISK FACTORS
B5: PRIME INTEREST | C5: 0.1025
B6: CURRENT PRODUCTION FACTOR | C6: 1
I7: No skills in Aquaculture
I8: Work experience (1-2 years)
B9: EXISTING SITE? | D9: =Interface!F15 -> <Do you already have a Farm?> | I9: Work experience (3-5 years)
B10: Interest Rate Effect | C10: =IF(D9="YES",1%,0%) -> 0 | I10: Work experience (over 5 years)
B11: Higher Production Factor | C11: =IF(D9="YES",0.1,0) -> 0 | I11: Formal education (certificate, diploma, degrees)
B12: CAPEX - NO LAND
B14: SKILLED WORKERS? | D14: =Interface!G18 -> <Please Select a Skills Level>
B15: Interest Rate Effect | C15: =IF(D14=Validation!F14,0%,IF(D14=Validation!F15,0.25%,IF(D14=Validation!F16,0.5%,IF(D14=Validation!F17,0.75%,IF(D14=Validation!F18,1%,0%))))) -> 0
B16: Higher Production Factor | C16: =IF(D14=B32, 0.05, IF(D14=B33, 0.1, IF(D14=B34, 0.15, IF(D14=B35, 0.2, 0)))) -> 0
B17: HIGHER EMPLOYEE COST
B19: ESTABLISHED FACILITY? | D19: =Interface!E15 -> <Select Operational Status>
B20: Interest Rate | C20: =IF(D19="EXISTING",1%,0%) -> 0
B22: INVESTOR? | D22: =Interface!G15 -> <Do you already have a investor?>
B23: Interest Rate | C23: =IF(D22="YES",1%,0%) -> 0
B25: NETT INTEREST RATE | C25: =C5-C10-C20-C23-C15 -> 0.1025
B26: NETT ESCALATED PRODUCTION FACTOR | C26: =C6+C11+C16 -> 1
B31: No skills in Aquaculture
B32: Work experience (1-2 years)
B33: Work experience (3-5 years)
B34: Work experience (over 5 years)
B35: Formal education (certificate, diploma, degrees)
